Workbook

Sheet Logbook_JolieFleur
J1: nm | K1: hours | L1: sail (h) | M1: mot (h) | Q1: avg speed | R1: Sail | T1: Overnight
J2: =SUM(J28:J292) -> 68.5 | K2: =SUM(K28:K892) -> 20 | L2: =SUM(L28:L892) -> 9.5 | M2: =SUM(M28:M892) -> 10.5 | Q2: =AVERAGEIF(Q28:Q226,"<>0") -> 3.309259259 | R2: =SUM(R28:R292) -> 3 | T2: 3 | U2: 0 | V2: 0 | W2: 0 | X2: 2
C3: MMSI | D3: CallSign
A4: Jolie Fleur | C4: 211536980 | D4: DH7646 | H4: alle Zeiten Bordzeit (Sommerzeit D)
F5: [Wind, Wetter,Temp, HPa] | G5: Crew
A6: Date | C6: Location | D6: Lat | E6: Lon | F6: Wetter | G6: Crew | H6: comments, sightings, … | J6: dist (nm) | K6: Gesamt (h) | L6: Segel (h) | M6: Motor (h) | N6: Miles Motor# since last Tank | O6: Tanken [L] | Q6: Avg | R6: Saildays | S6: Non-Sail | T6: Marina | U6: Boje | V6: Anker | W6: Others | X6: Gabbiani | Z6: Liegeplatz | AA6: Price
H10: Koordinaten
H11: https://www.google.com/maps/@45.7051118,13.056294,12.5z
H13: https://webapp.navionics.com/#boating@9&key=m%7ByuGsfwnA
H14: dirk@doingx.de / 8&Achtung
H16: https://connect.garmin.com/modern/activities
H17: dirk@doingx.de / 8&Achtung
B22: H:HarbourDay, O:Off, T:Tanken | D22: Richtung | E22: Wind | F22: Wetter | G22: Temp | H22: Pressure
D23: NW | E23: KN | F23: S/R/C | G23: C | H23: HP
J26: rot eintragen
C28: Tour: Venice - Gabbiani | Z28: http://www.doingx.de/wp-content/JF_track/gpx/20200824_JolieFleur_Venice-Gabbiani.gpx | AB28: http://www.doingx.de/jolie-fleur-venedig-nach-gabbiani.html
A29: 2020-08-22T18:00:00 | B29: ab | C29: Venice, Giudecca | D29: 45427894 | E29: 12317646 | F29: 35°C | G29: Dirk, Beatrice | H29: Umsiedeln in die Marina S. Elena | J29: 0 | K29: =L29+M29 -> 0 | L29: 0 | M29: 0 | Q29: =IF(ISNUMBER(J29/L29),J29/L29,0) -> 0 | R29: =IF(OR(B29="H",B29="O"),0,IF(B29="ab",0,ROUNDUP((((A29-A28)/0.0416666666666667))/24,0))) -> 0 | S29: =IF(OR(B29="H",B29="O"),ROUNDUP((((A29-A28)/0.0416666666666667))/24,0),0) -> 0
A30: 2020-08-22T19:00:00 | B30: an | C30: Vencie, Marina S.Elena | D30: 45427397 | E30: 12366485 | F30: 35°C | G30: Dirk, Beatrice | H30: Durch den Kanal S.Marco, am Markus Platz vorbei. Tolle Kulisse. | J30: 3 | K30: =(A30-A29)*24 -> 0.9999999999 | L30: =K30-M30 -> -5.820766091e-11 | M30: 1 | Q30: =IF(ISNUMBER(J30/K30),J30/K30,0) -> 3 | R30: =IF(OR(B30="H",B30="O"),0,IF(B30="ab",0,ROUNDUP((((A30-A29)/0.0416666666666667))/24,0))) -> 1 | S30: 0 | T30: 1 | Z30: Marina S. Elena | AA30: 59 | AB30: https://www.marinasantelena.com/
A31: 2020-08-23T09:00:00 | B31: ab | C31: Vencie, Marina S.Elena | D31: 45427397 | E31: 12366485 | F31: ONO, 25kn, S | G31: Dirk, Beatrice | H31: Steile Wellen. Erst mal mit Motor gegenan. | J31: 0 | K31: =L31+M31 -> 0 | L31: 0 | M31: 0 | Q31: =IF(ISNUMBER(J31/L31),J31/L31,0) -> 0 | R31: =IF(OR(B31="H",B31="O"),0,IF(B31="ab",0,ROUNDUP((((A31-A30)/0.0416666666666667))/24,0))) -> 0 | S31: =IF(OR(B31="H",B31="O"),ROUNDUP((((A31-A30)/0.0416666666666667))/24,0),0) -> 0
A32: 2020-08-23T19:00:00 | B32: an | C32: Caorle, Darsena Dell' Orologio | D32: 45600698 | E32: 12877818 | F32: ONO, 25kn, R | G32: Dirk, Beatrice | H32: Gewitter über Land. Blitze und sehr dunkel.. Gerade noch in die Marina geschafft. Es fängt an zu regnen. | J32: 31.5 | K32: =(A32-A31)*24 -> 10 | L32: =K32-M32 -> 5 | M32: 5 | Q32: =IF(ISNUMBER(J32/K32),J32/K32,0) -> 3.15 | R32: =IF(OR(B32="H",B32="O"),0,IF(B32="ab",0,ROUNDUP((((A32-A31)/0.0416666666666667))/24,0))) -> 1 | S32: 0 | T32: 1 | Z32: Darsena Dell' Orologio (nur per Telefon oder VHF buchbar) | AA32: 50 | AB32: http://www.darsenaorologio.com/
A33: 2020-08-23T09:00:00 | B33: T | C33: Tanken | D33: 45590269 | E33: 12853967 | G33: Dirk, Beatrice | H33: Caorle, Marina 4, Tanken: 40 L | O33: 40 | Z33: Anzeige(vor/nach): 0 / 0,75
A34: 2020-08-23T10:00:00 | B34: ab | C34: Caorle, Darsena Dell' Orologio | D34: 45600698 | E34: 12877818 | F34: ONO, 20kn, S | G34: Dirk, Beatrice | H34: Wieder starker Wind von vorne. Puh. Aber heute fühlenb wir uns sicherer und setzten schon kurz nach der Ausfahrt die Segel. | J34: 0 | K34: =L34+M34 -> 0 | L34: 0 | M34: 0 | Q34: =IF(ISNUMBER(J34/L34),J34/L34,0) -> 0 | R34: =IF(OR(B34="H",B34="O"),0,IF(B34="ab",0,ROUNDUP((((A34-A32)/0.0416666666666667))/24,0))) -> 0 | S34: =IF(OR(B34="H",B34="O"),ROUNDUP((((A34-A32)/0.0416666666666667))/24,0),0) -> 0
A35: 2020-08-23T19:00:00 | B35: an | C35: Marina Gabbiani | D35: 45693573 | E35: 13074588 | F35: ONO, 20kn , S | G35: Dirk, Beatrice | H35: Im letzten Manöver geht unsere Fock kaputt. Riß im oberen Drittel. | J35: 34 | K35: =(A35-A34)*24 -> 9 | L35: =K35-M35 -> 4.5 | M35: 4.5 | Q35: =IF(ISNUMBER(J35/K35),J35/K35,0) -> 3.777777778 | R35: =IF(OR(B35="H",B35="O"),0,IF(B35="ab",0,ROUNDUP((((A35-A34)/0.0416666666666667))/24,0))) -> 1 | S35: =IF(OR(B35="H",B35="O"),ROUNDUP((((A35-A34)/0.0416666666666667))/24,0),0) -> 0 | T35: 1
A36: 2020-08-24 | B36: H | C36: Marina Gabianni | D36: 45693573 | E36: 13074588 | G36: Dirk, Beatrice | H36: Einräumen, basteln. Sehr warm. | S36: =IF(OR(B36="H",B36="O"),ROUNDUP((((A36-A35)/0.0416666666666667))/24,0),0) -> 1 | X36: 1
A37: 2020-08-25 | B37: H | C37: Marina Gabianni | D37: 45693573 | E37: 13074588 | G37: Dirk, Beatrice | H37: Einräumen, basteln. Sehr warm. | S37: =IF(OR(B37="H",B37="O"),ROUNDUP((((A37-A36)/0.0416666666666667))/24,0),0) -> 1 | X37: 1
C38: Tour
A39: ? | B39: O | C39: Marina Gabianni | D39: 45693573 | E39: 13074588 | S39: =IF(OR(B39="H",B39="O"),ROUNDUP((((A39-A36)/0.0416666666666667))/24,0),0) -> 
A292: last - dont delete

Sheet Motorbook_JolieFleur
A1: Fleur d'Ocean | K1: Tankinhalt 12L (+5L)
A4: Total | B4: =SUM(B6:B16) -> 47 | D4: =MAX(D6:D16) -> 8 | H4: =AVERAGE(H6:H16) -> 0.9375 | I4: =AVERAGE(I6:I16) -> 0.3108333333
A5: Datum | B5: Liter | C5: Euro | D5: Motor h | E5: Gesamt h | F5: Distanz | G5: Kommentar | H5: Verbrauch [L/h] | I5: Verbrauch [L/nm] | K5: Rest L im Tank | L5: Rest H | M5: Rest nm
A6: Verbrauch seit letzten Tanken | K6: 0 | L6: =K6/H$4 -> 0 | M6: =K6/I$4 -> 0
A7: 24.08.202020 | B7: 40 | C7: =B7*1.56 -> 62.4 | D7: 0 | G7: Tanken | H7: 1 | I7: 0.33 | K7: =17-B7 -> -23 | L7: =K7/H$4 -> -24.53333333 | M7: =K7/I$4 -> -73.99463807
A8: 25.08.202020 | B8: 7 | D8: 8 | F8: 24 | G8: Tanken | H8: =B8/D8 -> 0.875 | I8: =B8/F8 -> 0.2916666667 | K8: 10 | L8: 10.66666667 | M8: 32.17158177

Sheet Wind-Welle
A1: Windstärken | E1: Staudruck | F1: Staudruck | H1: Bezeichnung der Windstärke | I1: Bezeichnung (english) | J1: Auswirkungen | K1: Beschreibung | L1: Beschreibung | N1: Seegang | R1: Wellenlänge | S1: Wellenhöhe (m) | T1: Wellenhöhe (m) | U1: Wave height (m) | V1: Wave height (m)
A2: (Bft) | B2: kn | C2: m/s | D2: km/h | E2: kg/m² | F2: N/m² | K2: Wirkung an Land | L2: Wirkung auf dem Meer | O2: Seegang nach Petersen | P2: Bezeichnung (Windsee) | Q2: Wave | R2: m | S2: Tiefsee (Atlantik) | T2: Flachsee (Ostsee) | U2: probable | V2: maximum | X2: kn | Y2: kn | Z2: kn to Bft (feedern) | AA2: (Bft) | AB2: (Bft)
A3: 0 | B3: 0-1 | C3: 0-0,02 | D3: 0-1 | E3: <1 | F3: − | H3: Windstille | I3: calm | J3: keine Luftbewegung, spiegelglatte See | K3: Keine Luftbewegung, Rauch steigt senkrecht empor | L3: Spiegelglatte See | N3: glatte See | O3: 0 | P3: Völlig ruhige, glatte See | Q3: - | R3: − | S3: − | T3: − | U3: - | V3: - | X3: 0 | AA3: 0
A4: 1 | B4: 1-4 | C4: 0,3-1,5 | D4: 2-5 | E4: 0 − 0,1 | F4: 0 − 1 | H4: Leiser Zug | I4: light air | J4: Luftbewgung an Rauch erkennbar, kleine Kräuselwellen | K4: Kaum merklich, Rauch treibt leicht ab, Windflügel und Windfahnen unbewegt | L4: Kleine schuppenförmig aussehende Kräuselwellen ohne Schaumköpfe | N4: sehr ruhige See | O4: 1 | P4: Ruhige, gekräuselte See | Q4: Ripples | R4: < 5 | S4: 0,0 − 0,2 | T4: 0.05 | U4: 0.1 | V4: 0.1 | X4: 2 | Z4: +1 | AA4: 1
A5: 2 | B5: 4-7 | C5: 1,6-3,3 | D5: 6-11 | E5: 0,2 − 0,6 | F5: 2 − 6 | H5: Leichte Brise | I5: light breeze | J5: Wind spürbar, kleine Wellen | K5: Blätter rascheln, Wind im Gesicht spürbar | L5: Kleine, kurze Wellen, Oberfläche glasig | N5: ruhige See | O5: 2 | P5: Schwach bewegte See | Q5: Small wavelets | R5: < 15 | S5: 0,5 − 0,75 | T5: 0.6 | U5: 0.2 | V5: 0.3 | X5: 5 | Z5: +1 | AA5: 2
A6: 3 | B6: 7-11 | C6: 3,4-5,4 | D6: 12-19 | E6: 0,7 − 1,8 | F6: 7 − 18 | H6: Schwache Brise | I6: gentle breeze | J6: Blätter an Bäumen werden bewegt, vereinzelt weiße Schaumkronen auf den Wellen | K6: Blätter und dünne Zweige bewegen sich, Wimpel werden gestreckt | L6: Kämme beginnen sich zu brechen. Anfänge der Schaumbildung | Q6: Large wavelets | R6: < 25 | U6: 0.6 | V6: 1.0 | X6: 10 | Z6: +1 | AA6: 3
A7: 4 | B7: 11-16 | C7: 5,5-7,9 | D7: 20-28 | E7: 1,9 − 3,9 | F7: 19 − 39 | H7: Mäßige Brise | I7: moderate breeze | J7: Zweige werden bewegt, noch kleine Wellen, jedoch mehr kleine Schaumkronen | K7: Zweige bewegen sich, loses Papier wird vom Boden gehoben | L7: Kleine, länger werdende Wellen, ziemlich verbreitet Schaumköpfe | N7: leicht bewegte See | O7: 3 | P7: Leicht bewegte See | Q7: Small waves | R7: < 50 | S7: 0,8 − 1,2 | T7: 1 | U7: 1.0 | V7: 1.5 | X7: 15 | Z7: +1 | AA7: 4
A8: 5 | B8: 16-21 | C8: 8,0-10,7 | D8: 29-38 | E8: 4,0 − 7,2 | F8: 40 − 72 | H8: Frische Brise | I8: fresh breeze | J8: Kleinere Bäume werden bewegt, auf allen Welle weiße Schaumkronen | K8: Größere Zweige und Bäume bewegen sich, Schaumköpfe auf Seen | L8: Wind deutlich hörbar; mäßige Wellen von großer Länge, überall Schaumköpfe | N8: mäßig bewegte See | O8: 4 | P8: Mäßig bewegte See | Q8: Moderate waves | R8: < 75 | S8: 1,2 − 2,0 | T8: 1.5 | U8: 2.0 | V8: 2.5 | X8: 20 | Z8: +1 | AA8: 5
A9: 6 | B9: 22-27 | C9: 10,8-13,8 | D9: 39-49 | E9: 7,3 − 11,9 | F9: 73 − 119 | H9: Starker Wind | I9: strong breeze | J9: Bäume werden bewegt, Bildung größerer Wellen, die Kämme brechen, vereinzelt Gischt | K9: Dicke Äste bewegen sich, hörbares Pfeifen an Drahtseilen, in Telefonleitungen | L9: Größere Wellen mit brechenden Köpfen, überall weiße Schaumflecken. Etwas Gischt | N9: ziemlich grobe See | O9: 5 | P9: Grobe See | Q9: Large waves | R9: < 100 | S9: 2,0 − 3,5 | T9: 2.3 | U9: 3.0 | V9: 4.0 | X9: 25 | Z9: +1 | AA9: 6
A10: 7 | B10: 28-33 | C10: 13,9-17,1 | D10: 50-61 | E10: 12,0 − 18,3 | F10: 120 − 183 | H10: Steifer Wind | I10: moderate gale (or near gale) | J10: Das Gehen gegen den Wind wird schwieriger, Wellenkämme brechen, Schaumkronen werden weggeweht | K10: Bäume schwanken, Widerstand beim Gehen gegen den Wind | L10: Weißer Schaum von den brechenden Wellenköpfen legt sich in Schaumstreifen in die Windrichtung | N10: grobe See | O10: 6 | P10: Sehr grobe See | Q10: Large waves | R10: < 135 | S10: 3,5 − 6,0 | T10: 3 | U10: 4.0 | V10: 5.5 | X10: 30 | Z10: +1 | AA10: 7
A11: 8 | B11: 34-40 | C11: 17,2-20,7 | D11: 62-74 | E11: 18,4 − 26,8 | F11: 184 − 268 | H11: Stürmischer Wind | I11: fresh gale (or gale) | J11: Zweige werden abgebrochen, Gehen wird schwierig, mäßig hohe Wellen, Gischt beginnt abzuwehen | K11: Große Bäume werden bewegt, Zweige brechen von Bäumen, beim Gehen erhebliche Behinderung | L11: Mäßig hohe Wellenberge, deren Köpfe verweht werden, ausgeprägte Schaumstreifen | N11: hohe See | O11: 7 | P11: Hohe See | Q11: Moderately high waves | R11: < 150 | S11: mehr als 6,0 | T11: 4 | U11: 6.0 | V11: 7.5 | X11: 40 | AA11: 8
A12: 9 | B12: 41-47 | C12: 20,8-24,4 | D12: 75-88 | E12: 26,9 − 37,3 | F12: 269 − 373 | H12: Sturm | I12: strong gale | J12: vereinzelt werden Dachziegel abgehoben, höhere Wellenberge, Gischt beeinträchtigt die Sicht | K12: Äste brechen, Ziegel werden von Dächern gehoben | L12: Hohe Wellen mit verwehtem Gischt, Brecher beginnen sich zu bilden ("Rollen") | Q12: High waves | R12: < 200 | U12: 7.0 | V12: 10.0 | X12: 45 | AA12: 9
A13: 10 | B13: 48-55 | C13: 24,5-28,4 | D13: 89-102 | E13: 37,4 − 50,5 | F13: 374 − 505 | H13: Schwerer Sturm | I13: whole gale (or storm) | J13: Bäume werden entwurzelt, es entstehen hohe Wellenberge, überbrechende, lange Kömme, See weiß wie Schaum | K13: Bäume werden entwurzelt, Häuser beschädigt; selten im Landesinneren | L13: Sehr hohe Wellen, weiße Flecken auf dem Wasser, lange, überbrechende Kämme, schwere Brecher | N13: sehr hohe See | O13: 8 | P13: Sehr hohe See | Q13: Very high waves | R13: < 250 | S13: bis 20,0 | T13: 5.5 | U13: 9.0 | V13: 12.5 | X13: 50 | AA13: 10
A14: 11 | B14: 56-63 | C14: 28,5-32,6 | D14: 103-117 | E14: 50,6 − 66,5 | F14: 506 − 665 | H14: Orkanartiger Sturm | I14: storm (or violent storm) | J14: ist mit schweren Strumschäden verbunden, sehr hohe See, starke Gischt in der Luft, stark herabgesetzte Sicht | K14: Heftige Böen, schwere Sturmschäden; sehr selten im Binnenland | L14: Brüllende See, Wasser wird waagerecht weggeweht, starke Sichtverminderung | N14: äußerst schwere See | O14: 9 | P14: Außergewöhnlich schwere See | Q14: Exceptionally high waves | R14: < 300 | S14: über 20,0 | T14: − | U14: 2013-05-11 | V14: 16.0 | X14: 60 | Z14: -1 | AA14: 11
A15: 12 | B15: <63 | C15: <32,6 | D15: <117 | E15: > 66,6 | F15: > 666 | H15: Orkan | I15: hurricane | J15: schwerste Verwüstungen, extrem hohe Wellen, See vollständig weiß. Luft mit Gischt erfüllt | K15: Schwere Sturmschäden und Verwüstungen; sehr selten im Landesinneren | L15: See vollkommen weiß, Luft mit Schaum und Gischt gefüllt, keine Fernsicht mehr | Q15: Exceptionally high waves | R15: > 300 | U15: 14.0 | V15: > 16 | X15: 65 | Z15: -1 | AA15: 12

Sheet Wolken
A1: http://de.wikipedia.org/wiki/Wolke
A2: Gattungen | B2: Arten | C2: Unterarten | D2: Sonderformen, Begleitwolken | E2: Mutterwolken (Genitus) | F2: Bilder
A3: Cirrus (Ci) | B3: fibratus | C3: intortus | D3: mamma | E3: Cirrocumulus | J3: Haufen | K3: Schicht | N3: vertikal
A4: (Federwolke) | B4: uncinus | C4: radiatus | E4: Altocumulus | H4: Wolken | J4: Cumulus | K4: Stratus | N4: Nimbo
B5: spissatus | C5: vertebratus | E5: Cumulonimbus | H5: Hohe | I5: Cirro | J5: Cc | K5: Cs | N5: Cirrus
B6: castellanus | C6: duplicatus | H6: '5-13km
B7: floccus
H9: Mittelhohe | I9: Alto | J9: Ac | K9: As
A10: Cirrocumulus (Cc) | B10: stratiformis | C10: undulatus | D10: virga | H10: '2-7km
A11: (kleine Schäfchenwolke) | B11: lenticularis | C11: lacunosus | D11: mamma
B12: castellanus
B13: floccus | H13: Tiefe | I13: Strato | J13: Cu | K13: St | M13: Ns | N13: Cn
H14: 2km
M16: Nimbus | N16: CumuluNimbus
A17: Cirrostratus (Cs) | B17: fibratus | C17: duplicatus | E17: Cirrocumulus | J17: CirroCumulus | K17: CirroStratus
A18: (hohe Schleierwolke) | B18: nebulosus | C18: undulatus | E18: Cumulonimbus | J18: AltoCumulus | K18: AltoStratus
J19: Cumulus | K19: Stratus
A24: Altocumulus (Ac) | B24: stratiformis | C24: perlucidus | D24: virga | E24: Cumulus
A25: (große Schäfchenwolke) | B25: lenticularis | C25: translucidus | D25: mamma | E25: Cumulonimbus
B26: castellanus | C26: opacus
B27: floccus | C27: duplicatus
C28: undulatus
C29: radiatus
C30: lacunosus
A31: Altostratus (As) | C31: translucidus | D31: virga | E31: Altocumulus
A32: (mittelhohe Schichtwolke) | C32: opacus | D32: praecipitatio | E32: Cumulonimbus
C33: duplicatus | D33: pannus
C34: undulatus | D34: mamma
C35: radiatus
A38: Stratocumulus (Sc) | B38: stratiformis | C38: perlucidus | D38: mamma | E38: Altostratus
A39: (Haufenschichtwolke) | B39: lenticularis | C39: translucidus | D39: virga | E39: Nimbostratus
B40: castellanus | C40: opacus | D40: praecipitatio | E40: Cumulus
C41: duplicatus | E41: Cumulonimbus
C42: undulatus
C43: radiatus
C44: lacunosus
A45: Stratus (St) | B45: nebulosus | C45: opacus | D45: praecipitatio | E45: Nimbostratus
A46: (tiefe Schichtwolken) | B46: fractus | C46: translucidus | E46: Cumulus
C47: undulatus | E47: Cumulonimbus
A52: Cumulus (Cu) | B52: humilis | C52: radiatus | D52: pileus | E52: Altocumulus
A53: (Haufenwolken) | B53: mediocris | D53: velum | E53: Stratocumulus
B54: congestus | D54: virga
B55: fractus | D55: praecipitatio
D56: arcus
D57: pannus
D58: tuba
A59: Nimbostratus (Ns) | D59: praecipitatio | E59: Cumulus
A60: (Regenwolken) | D60: virga | E60: Cumulonimbus
D61: pannus
A66: Cumulonimbus (Cb) | B66: calvus | D66: praecipitatio | E66: Altocumulus
A67: (Gewitterwolken) | B67: capillatus | D67: virga | E67: Altostratus
D68: pannus | E68: Nimbostratus
D69: incus | E69: Stratocumulus
D70: mamma | E70: Cumulus
D71: pileus
D72: velum
D73: arcus
D74: tuba

Sheet KVR
A1: KVR | B1: Kollisionsverhütungsregeln (KVR)
B2: Teil A Allgemeines (Regel 1 bis Regel 3)
B3: Teil B Ausweich- und Fahrregeln ( Regel 4 bis Regel 1 9)
B4: Teil C Lichter und Signalkörper (Regel 20 bis Regel 31)
B5: Teil D Schall- und Lichtsignale (Regel 3 2 bis Regel 37)
B6: Teil E Befreiungen (Regel 38)
B8: Kollisionsverhütungsregeln
B10: Die Kollisionsverhütungsregeln (KVR) - offiziell „Internationale Regeln von 1972 zur Verhütung von Zusammenstößen auf See“ - stellen internationales Seeverkehrsrecht dar. Sie sind der grundlegende rechtliche Rahmen zur Regelung der Sicherheit und Leichtigkeit des Verkehrs auf hoher See und den damit verbundenen Gewässern. Die KVR dienen der Vermeidung von Schiffszusammenstößen. Sie wurden 1972 von der IMO (UN-Unterorganisation für die Seeschifffahrt) verabschiedet und gelten für alle Schiffe, auch für Sportboote. Der Originaltitel lautet: Conventions on the International Regulations for Preventing Collisions at Sea (COLREGs).
B11: Auf deutschen Seeschifffahrtsstraßen und bestimmten von Seeschiffen befahrenen Binnenwasserstrassen wie Elbe, Weser und Nord-Ostsee-Kanal gelten zusätzlich präzisierend die Seeschifffahrtsstraßen-Ordnung (SeeSchStrO) bzw. die Schifffahrtsordnung Emsmündung (EmsSchO). Die KVR sind aber trotzdem die grundlegenden Regeln des Seeschiffsverkehrs.
B13: Die KVR enthalten folgende Bereiche:
B15: Teil A: Allgemeines (Regeln 1-3, u. a. Anwendungsbereiche, Verantwortlichkeit und allgemeine Begriffsbestimmungen).
B17: Teil B: Ausweich und Fahrregeln (Regeln 4-19, u.a. Ausweichen, Kurs halten, Manöver zur Vermeidung von Unfällen, Verhalten im Fahrwasser, Überholen, usw.).
B19: Teil C: Lichterführung und Signalkörper (Regeln 20-31, u.a. Lichter, Navigationslichter und Signalkörper).
B21: Teil D: Schall- und Lichtsignale (Regeln 32-37, u. a. Darstellung der Schallsignale, Schallsignalgeräte).
B23: Teil E: Befreiungen (Regel 38)
B25: Zur Signalisierung von Fahrtrichtung und Position dienen die Positionslichter. Bei Kollisionskurs soll der Bevorrechtigte notfalls mit dem Manöver des letzten Augenblicks versuchen, eine Kollision zu vermeiden oder wenigstens die Schäden gering zu halten.
B27: Rechtliche Grundlagen Deutschland
B29: In Deutschland, insbesondere im deutschen Küstenmeer und auf Schiffen, die berechtigt sind, die Bundesflagge zu führen, haben die KVR Geltung durch die Verordnung zu den Internationalen Regeln von 1972 zur Verhütung von Zusammenstößen auf See vom 13. Juni 1977 (BGBl. I S. 813), die zuletzt durch Artikel 2 der Verordnung vom 15. Januar 2012 (BGBl. I S. 112) geändert worden ist.
A32: Teil A | B32: Allgemeines
B33: Regel 1 Anwendung
B34: Regel 2 Verantwortlichkeit
B35: Regel 3 Allgemeine Begriffsbestimmungen
A37: Teil B | B37: Ausweich- und Fahrregeln
A39: Abschnitt I | B39: Verhalten von Fahrzeugen bei allen Sichtverhältnissen
B40: Regel 4 Anwendung
B41: Regel 5 Ausguck
B42: Regel 6 Sichere Geschwindigkeit
B43: Regel 7 Möglichkeit der Gefahr eines Zusammenstoßes
B44: Regel 8 Manöver zur Vermeidung von Zusammenstößen
B45: Regel 9 Enge Fahrwasser
B46: Regel 10 Verkehrstrennungsgebiete
A48: Abschnitt II | B48: Verhalten von Fahrzeugen, die einander in Sicht haben
B49: Regel 11 Anwendung
B50: Regel 12 Segelfahrzeuge
B51: Regel 13 Überholen
B52: Regel 14 Entgegengesetzte Kurse
B53: Regel 15 Kreuzende Kurse
B54: Regel 16 Maßnahmen des Ausweichpflichtigen
B55: Regel 17 Maßnahmen des Kurshalters
B56: Regel 18 Verantwortlichkeiten der Fahrzeuge untereinander
A58: Abschnitt III | B58: Verhalten von Fahrzeugen bei verminderter Sicht
B59: Regel 19 Verhalten von Fahrzeugen bei verminderter Sicht
A61: Teil C | B61: Lichter und Signalkörper
B62: Regel 20 Anwendung
B63: Regel 21 Begriffsbestimmungen
B64: Regel 22 Tragweite der Lichter
B65: Regel 23 Maschinenfahrzeuge in Fahrt
B66: Regel 24 Schleppen und Schieben
B67: Regel 25 Segelfahrzeuge in Fahrt und Fahrzeuge unter Ruder
B68: Regel 26 Fischereifahrzeuge
B69: Regel 27 Manövrierunfähige oder manövrierbehinderte Fahrzeuge
B70: Regel 28 Tiefgangbehinderte Fahrzeuge
B71: Regel 29 Lotsenfahrzeuge
B72: Regel 30 Fahrzeuge vor Anker und auf Grund
B73: Regel 31 Wasserflugzeuge
A75: Teil D | B75: Schall- und Lichtsignale
B76: Regel 32 Begriffsbestimmungen
B77: Regel 33 Ausrüstung für Schallsignale
B78: Regel 34 Manöver- und Warnsignale
B79: Regel 35 Schallsignale bei verminderter Sicht
B80: Regel 36 Aufmerksamkeitssignale
B81: Regel 37 Notsignale
A83: Teil E | B83: Befreiungen
B84: Regel 38 Befreiungen
B85: Anlage I Anordnung und technische Einzelheiten der Lichter und Signalkörper
B86: Anlage II Zusatzsignale für nahe beieinander fischende Fahrzeuge
B87: Anlage III Technische Einzelheiten der Schallsignalanlagen
B88: Anlage IV Notzeichen
B91: http://www.gesetze-im-internet.de/seestro_1972/index.html

Sheet Logbook_FleurdRapide
F1: S=Sonne, R= Regen, C=Cloudy | I1: SUMME | J1: nm | K1: sail (h) | L1: mot (h) | M1: mot (h) | O1: avg speed | P1: Sail | R1: Overnight | W1: days underway
F2: T=C° | J2: =SUM(J28:J289) -> 1142 | K2: =SUM(K28:K889) -> 211.36 | L2: =SUM(L28:L889) -> 68 | M2: =SUM(M28:M889) -> 279.36 | O2: =AVERAGEIF(O28:O223,"<>0") -> 3.892533923 | P2: =SUM(P28:P289) -> 32 | Q2: 12 | R2: 22 | S2: 10 | T2: 10 | U2: 0 | W2: =(((MAX(A28:A289)-MIN(A28:A289))/0.0416666666666667))/24 -> 45.82
C3: MMSI | D3: CallSign | K3: hours | L3: hours | M3: hours | P3: days
A4: Fleur Rapide | C4: 211809950 | D4: DG5145 | H4: alle Zeiten Bordzeit (Sommerzeit D) | K4: =K2+L2 -> 279.36 | L4: gesamt | M4: gesamt | O4: =J2/M2 -> 4.087915235
F5: [Wind, Wetter,Temp, HPa] | G5: Crew
A6: Date | C6: Location | D6: Lat | E6: Lon | F6: Wetter | G6: Crew | H6: comments, sightings, … | J6: dist (nm) | K6: Segel (h) | L6: Motor (h) | M6: Gesamt (h) | O6: Avg | P6: Saildays | Q6: Non-Sail | R6: Marina | S6: Boje | T6: Anker | U6: Others | W6: Land
AD7: Wind | AF7: Wetter | AI7: Pressure
A8: 2019-04-22 | D8: Vendig
A9: 2019-04-22 | B9: H | C9: Marina Gabianni | D9: 45693573 | E9: 13074588 | G9: Dirk | H9: Die Fleur Rapide zu Marina gepracht | J9: 0 | K9: 0 | L9: 0 | M9: =K9+L9 -> 0 | O9: =IF(ISNUMBER(J9/K9),J9/K9,0) -> 0 | P9: =IF(OR(B9="H",B9="O"),0,IF(B9="ab",0,ROUNDUP((((A9-A8)/0.0416666666666667))/24,0))) -> 0 | Q9: =IF(OR(B9="H",B9="O"),ROUNDUP((((A9-A8)/0.0416666666666667))/24,0),0) -> 0 | R9: 1 | W9: I
A10: 2019-04-24 | B10: H | C10: Marina Gabianni | D10: 45693573 | E10: 13074588 | G10: Dirk | H10: Mast Setting, Fuel, Food | J10: 0 | K10: 0 | L10: 0 | M10: 0 | O10: 0 | P10: 0 | Q10: 2 | R10: 1 | W10: I
A11: 2019-04-29 | B11: O | C11: Marina Gabianni | G11: Dirk | H11: Zurück in München | J11: 0 | K11: 0 | L11: 0 | M11: 0 | O11: 0 | P11: 0 | Q11: 5 | W11: I
A12: 2019-04-30 | B12: H | C12: Marina Gabianni | D12: 45693573 | E12: 13074588 | G12: Dirk, Beatrice | H12: Anreise nach Gabbiani | J12: 0 | K12: 0 | L12: 0 | M12: 0 | O12: 0 | P12: 0 | Q12: 1 | R12: 1 | W12: I
A13: 2019-05-01 | B13: H | C13: Marina Gabianni | D13: 45693573 | E13: 13074588 | G13: Dirk, Beatrice | H13: Segel setzen, Proviant, … | J13: 0 | K13: 0 | L13: 0 | M13: 0 | O13: 0 | P13: 0 | Q13: 1 | R13: 1 | W13: I
A14: 2019-05-02T08:30:00 | B14: ab | C14: Marina Gabianni | D14: 45693573 | E14: 13074588 | F14: SW5, S, 23, 1025 | G14: Dirk, Beatrice | H14: Auf nach Venedig, Sausewind | J14: 0 | K14: 0 | L14: 0 | M14: 0 | O14: 0 | P14: =IF(OR(B14="H",B14="O"),0,IF(B14="ab",0,ROUNDUP((((A14-A13)/0.0416666666666667))/24,0))) -> 0 | Q14: 0 | W14: I
A15: 2019-05-02T20:30:00 | B15: an | C15: Venice | D15: 45438459 | E15: 12362630 | G15: Dirk, Beatrice | H15: Späte Ankunft. Hafenmeister schon weg. | J15: 38 | K15: =(A15-A14)*24 -> 12 | L15: 3 | M15: 15 | O15: 3.166666667 | P15: =IF(OR(B15="H",B15="O"),0,IF(B15="ab",0,ROUNDUP((((A15-A14)/0.0416666666666667))/24,0))) -> 1 | Q15: 0 | R15: 1 | W15: I
A16: 2019-05-03 | B16: H | C16: Venice | D16: 45693573 | E16: 13074588 | G16: Dirk, Beatrice | H16: Stadtbesichtigung | J16: 0 | K16: 0 | L16: 0 | M16: 0 | O16: 0 | P16: 0 | Q16: 1 | R16: 1 | W16: I
A17: =A16+1.3 -> 2019-05-04T07:12:00 | B17: ab | C17: Venice | D17: 45438459 | E17: 12362630 | F17: NO2-5, RC, 13, ? | G17: Dirk, Beatrice | H17: Regen, Regen, Regen & Gegenwind | J17: 0 | K17: 0 | L17: 0 | M17: 0 | O17: 0 | P17: 0 | Q17: 0 | W17: I
A18: =A17+0.6 -> 2019-05-04T21:36:00 | B18: an | C18: Marina Gabianni | D18: 45693573 | E18: 13074588 | F18: NO1, RC, 13, ? | G18: Dirk, Beatrice | H18: Kalt, kein Wind mehr | J18: 42 | K18: =(A18-A17)*24 -> 14.4 | L18: 3 | M18: 17.4 | O18: 2.916666667 | P18: 1 | Q18: 0 | R18: 1 | W18: I
A19: 2019-05-05 | B19: H | C19: Marina Gabianni | D19: 45693573 | E19: 13074588 | G19: Dirk, Beatrice | J19: 0 | K19: 0 | L19: 0 | M19: 0 | O19: 0 | P19: 0 | Q19: 1 | R19: 1 | W19: I
A20: 2019-05-07 | B20: H | C20: Marina Gabianni | D20: 45693573 | E20: 13074588 | G20: Dirk, Beatrice | H20: Bea zurück nach München | J20: 0 | K20: 0 | L20: 0 | M20: =K20+L20 -> 0 | O20: 0 | P20: 0 | Q20: 2 | R20: 2 | W20: I
AD21: Richtung | AE21: Wind | AF21: Sonne | AG21: Regen | AH21: Temp
AD22: NW | AE22: KN | AF22: S | AG22: R | AH22: C | AI22: HP
A28: 2019-05-10 | C28: Tour
A29: 2019-05-10 | B29: O | C29: Marina Gabianni | G29: Dirk | H29: Mit dem Moped nach Italien, Gottard gesperrt. Platten. | J29: 0 | K29: 0 | L29: 0 | M29: =K29+L29 -> 0 | O29: =IF(ISNUMBER(J29/M29),J29/M29,0) -> 0 | P29: =IF(OR(B29="H",B29="O"),0,IF(B29="ab",0,ROUNDUP((((A29-#REF!)/0.0416666666666667))/24,0))) -> 0 | Q29: =IF(OR(B29="H",B29="O"),ROUNDUP((((A29-A28)/0.0416666666666667))/24,0),0) -> 0 | W29: I
A30: 2019-05-11 | B30: O | C30: Marina Gabianni | G30: Dirk | H30: Moped Crash! | J30: 0 | K30: 0 | L30: 0 | M30: =K30+L30 -> 0 | O30: 0 | P30: =IF(OR(B30="H",B30="O"),0,IF(B30="ab",0,ROUNDUP((((A30-A29)/0.0416666666666667))/24,0))) -> 0 | Q30: 1 | W30: I
A31: =A30+4.42 -> 2019-05-15T10:04:48 | B31: ab | C31: Marina Gabianni | D31: 45.693573 | E31: 13.074588 | G31: Dirk | H31: Bewölkt, 2-3kn aus N. | J31: 0 | K31: 0 | L31: 0 | M31: 0 | O31: 0 | P31: 0 | Q31: 0
A32: =A31+0.43 -> 2019-05-15T20:24:00 | B32: an | C32: Umag, weiter nach Novograd | D32: 45.319006 | E32: 13.559387 | G32: Dirk | H32: Wind hat kärftig zugenommen bis Umag. 20-25kn N. Mit CodeZ >10kn Fahrt! Vor Umag dann reffen. Einklarieren um 16:30 in Umag. Um 17:45 weiter nach Novigrad. Wind komplett eingeschlafen. Ca. 1h / 4nm mit Motor bis zur Boje. | J32: 38 | K32: =((A32-A31)*24)-L32 -> 7.32 | L32: 3 | M32: 10.32 | O32: 3.682170543 | P32: 1 | Q32: 0 | S32: 1
A33: =A32+0.6 -> 2019-05-16T10:48:00 | B33: ab | C33: Novograd | D33: 45.319006 | E33: 13.559387 | G33: Dirk | J33: 0 | K33: 0 | L33: 0 | M33: 0 | O33: 0 | P33: =IF(OR(B33="H",B33="O"),0,IF(B33="ab",0,ROUNDUP((((A33-A32)/0.0416666666666667))/24,0))) -> 0 | Q33: =IF(OR(B33="H",B33="O"),ROUNDUP((((A33-A32)/0.0416666666666667))/24,0),0) -> 0
A34: =A33+0.4 -> 2019-05-16T20:24:00 | B34: an | C34: Uvala Salina, Bucht | D34: 44.8276 | E34: 13.8517 | G34: Dirk | H34: Zum Schluß hin hat der Wind von West auf Süd gedreht und ist dann ganz eingeschlafen. Gennaker ausprobiert. | J34: 38 | K34: =((A34-A33)*24)-L34 -> 8.6 | L34: 1 | M34: 9.6 | O34: 3.958333333 | P34: 1 | Q34: 0 | T34: 1
A35: =A34+0.55 -> 2019-05-17T09:36:00 | B35: ab | C35: Uvala Salina, Bucht | D35: 44.8276 | E35: 13.8517 | G35: Dirk | H35: Wind aus SW, 5-10 kn. Dreht auf S. | J35: 0 | K35: 0 | L35: 0 | M35: 0 | O35: 0 | P35: =IF(OR(B35="H",B35="O"),0,IF(B35="ab",0,ROUNDUP((((A35-A34)/0.0416666666666667))/24,0))) -> 0 | Q35: =IF(OR(B35="H",B35="O"),ROUNDUP((((A35-A34)/0.0416666666666667))/24,0),0) -> 0
A36: =A35+0.47 -> 2019-05-17T20:52:48 | B36: an | C36: Krivica | D36: 44.5009 | E36: 14.4954 | G36: Dirk | H36: Schöne Bucht. Leider zu früh im Jahr. Es sind noch keine Bojen ausgelegt. Anker vorne und mit der Heckleine an Land schwimmen. Erfrischend. | J36: 42 | K36: =((A36-A35)*24)-L36 -> 9.78 | L36: 1.5 | M36: 11.28 | O36: 3.723404255 | P36: 1 | Q36: 0 | T36: 1
A37: 2019-05-18 | B37: O | C37: Krivica | D37: 44.5009 | E37: 14.4954 | G37: Dirk | H37: Pausentag. 30+kn Wind aussitzen | J37: 0 | K37: 0 | L37: 0 | M37: 0 | O37: 0 | P37: =IF(OR(B37="H",B37="O"),0,IF(B37="ab",0,ROUNDUP((((A37-A36)/0.0416666666666667))/24,0))) -> 0 | Q37: =IF(OR(B37="H",B37="O"),ROUNDUP((((A37-A36)/0.0416666666666667))/24,0),0) -> 1 | T37: 1
A38: =A37+1.45 -> 2019-05-19T10:48:00 | B38: ab | C38: Krivica | D38: 44.5009 | E38: 14.4954 | G38: Dirk | H38: 15-25kn Wind aus Süd | J38: 0 | K38: 0 | L38: 0 | M38: 0 | O38: 0 | P38: 0 | Q38: 0
A39: =A38+0.36 -> 2019-05-19T19:26:24 | B39: an | C39: Veli Rat | D39: 44.147 | E39: 14.8351 | G39: Dirk | H39: Ein kampf entgegen. Wind, Wellen, Regen. Reffen, ausreffen, reffen, … | J39: 37 | K39: =((A39-A38)*24)-L39 -> 7.64 | L39: 1 | M39: 8.64 | O39: 4.282407407 | P39: 1 | Q39: 0 | S39: 1
A40: 2019-05-20 | B40: O | C40: Veli Rat | D40: 44.147 | E40: 14.8351 | G40: Dirk | H40: Pausentag | J40: 0 | K40: 0 | L40: 0 | M40: 0 | O40: 0 | P40: =IF(OR(B40="H",B40="O"),0,IF(B40="ab",0,ROUNDUP((((A40-A39)/0.0416666666666667))/24,0))) -> 0 | Q40: =IF(OR(B40="H",B40="O"),ROUNDUP((((A40-A39)/0.0416666666666667))/24,0),0) -> 1 | T40: 1
A41: =A40+1.45 -> 2019-05-21T10:48:00 | B41: ab | C41: Veli Rat | D41: 44.147 | E41: 14.8351 | G41: Dirk | J41: 0 | K41: 0 | L41: 0 | M41: 0 | O41: 0 | P41: 0 | Q41: 0
A42: =A41+0.3 -> 2019-05-21T18:00:00 | B42: an | C42: Uvala Soline | D42: 43.9251 | E42: 15.3612 | G42: Dirk | H42: Schöne Bucht. Nettes Restaurant "Kiss". | J42: 36 | K42: =((A42-A41)*24)-L42 -> 6.7 | L42: 0.5 | M42: 7.2 | O42: 5 | P42: 1 | Q42: 0 | S42: 1
A43: =A42+0.7 -> 2019-05-22T10:48:00 | B43: ab | C43: Uvala Soline | D43: 43.9251 | E43: 15.3612 | G43: Dirk | H43: Sonnenschein. | J43: 0 | K43: 0 | L43: 0 | M43: 0 | O43: 0 | P43: =IF(OR(B43="H",B43="O"),0,IF(B43="ab",0,ROUNDUP((((A43-A42)/0.0416666666666667))/24,0))) -> 0 | Q43: =IF(OR(B43="H",B43="O"),ROUNDUP((((A43-A42)/0.0416666666666667))/24,0),0) -> 0
A44: =A43+0.3 -> 2019-05-22T18:00:00 | B44: an | C44: Borovnjak | D44: 43.697 | E44: 15.6645 | G44: Dirk | H44: Schöner Segeltag. 10 Kn Wind. Sonne | J44: 26 | K44: =((A44-A43)*24)-L44 -> 6.2 | L44: 1 | M44: 7.2 | O44: 3.611111111 | P44: 1 | Q44: 0 | S44: 1
A45: =A44+0.7 -> 2019-05-23T10:48:00 | B45: ab | C45: Borovnjak | D45: 43.697 | E45: 15.6645 | G45: Dirk | H45: Sonnenschein. | J45: 0 | K45: 0 | L45: 0 | M45: 0 | O45: 0 | P45: =IF(OR(B45="H",B45="O"),0,IF(B45="ab",0,ROUNDUP((((A45-A44)/0.0416666666666667))/24,0))) -> 0 | Q45: =IF(OR(B45="H",B45="O"),ROUNDUP((((A45-A44)/0.0416666666666667))/24,0),0) -> 0
A46: =A45+0.1 -> 2019-05-23T13:12:00 | B46: an | C46: Prvic | D46: 43.7234 | E46: 15.7981 | G46: Dirk | H46: Nur ein kurzes Stück. Proviant kaufen und entspannen. Wind hat auf NW gedreht. Sehr gut. | J46: 10 | K46: =((A46-A45)*24)-L46 -> 1.9 | L46: 0.5 | M46: 2.4 | O46: 4.166666667 | P46: 1 | Q46: 0 | S46: 1
A47: =A46+0.87 -> 2019-05-24T10:04:48 | B47: ab | C47: Prvic | D47: 43.7234 | E47: 15.7981 | G47: Dirk | J47: 0 | K47: 0 | L47: 0 | M47: 0 | O47: 0 | P47: =IF(OR(B47="H",B47="O"),0,IF(B47="ab",0,ROUNDUP((((A47-A46)/0.0416666666666667))/24,0))) -> 0 | Q47: =IF(OR(B47="H",B47="O"),ROUNDUP((((A47-A46)/0.0416666666666667))/24,0),0) -> 0
A48: =A47+0.4 -> 2019-05-24T19:40:48 | B48: an | C48: Uvala Sesula | D48: 43.3912 | E48: 16.2059 | G48: Dirk | H48: Anfang 1-3 kn Wind aus Ost. Dreht später nach West zunehmend bis 10kn. Wunderschöner, sonniger Segeltag. Das große Genaker gesetzt. Sehr mächtig! | J48: 33 | K48: =((A48-A47)*24)-L48 -> 9.1 | L48: 0.5 | M48: 9.6 | O48: 3.4375 | P48: 1 | Q48: 0 | S48: 1
A49: =A48+0.8 -> 2019-05-25T14:52:48 | B49: ab | C49: Uvala Sesula | D49: 43.3912 | E49: 16.2059 | G49: Dirk | J49: 0 | K49: 0 | L49: 0 | M49: 0 | O49: 0 | P49: =IF(OR(B49="H",B49="O"),0,IF(B49="ab",0,ROUNDUP((((A49-A48)/0.0416666666666667))/24,0))) -> 0 | Q49: =IF(OR(B49="H",B49="O"),ROUNDUP((((A49-A48)/0.0416666666666667))/24,0),0) -> 0
A50: =A49+0.2 -> 2019-05-25T19:40:48 | B50: an | C50: Trogir, SCT Marina | D50: 43.5136 | E50: 16.2464 | G50: Dirk | H50: Schöner Tag. Schöner Wind. Ich gehe eine Runde cruisen. Fahre 8chten um ein paar Inseln. Bei der Einfahrt zum Hafen Trogir kommen mir 100te Boote entgegen. Heute ist Crewwechsel bei den Charterbooten. Gestern war Sternfahrt nach Trogir und Split. Heute geht alles wieder raus. Am Abend kommt Bea eingeflogen. Sehr schön. Freue mich! | J50: 25 | K50: =((A50-A49)*24)-L50 -> 4.3 | L50: 0.5 | M50: 4.8 | O50: 5.208333333 | P50: 1 | Q50: 0 | R50: 1
A51: =A50+0.65 -> 2019-05-26T11:16:48 | B51: ab | C51: Trogir, SCT Marina | D51: 43.5136 | E51: 16.2464 | F51: Regen, stürmisch | G51: Dirk, Bea | H51: Frau an board. Hoffentlich passiert da nichts schlimmes. Auschecken bei der Marina 380KN für eine Nacht. | J51: 0 | K51: 0 | L51: 0 | M51: 0 | O51: 0 | P51: 0 | Q51: 0
A52: =A51+0.2 -> 2019-05-26T16:04:48 | B52: an | C52: Bobovisca | D52: 43.3278 | E52: 16.4461 | F52: Regen, kein Wind | G52: Dirk, Bea | H52: Aufkreuzen nach Brac. Puh. Wellig, stürmisch und Regen. Zur Insel Solta hin immer etwas mehr Düsen-Wind. Später dann mehr Regen und sehr wenig Wind. Bei der Einfahrt in die Bobovisca Bucht kommt gleich ein Marinero mit Boot und hilft uns beim einparken. 100 KN die Nacht. | J52: 20 | K52: =((A52-A51)*24)-L52 -> 4.3 | L52: 0.5 | M52: 4.8 | O52: 4.166666667 | P52: 1 | Q52: 0 | S52: 1
A53: 2019-05-27 | B53: O | C53: Bobovisca | D53: 43.3278 | E53: 16.4461 | F53: Regen, stürmisch | G53: Dirk, Bea | H53: Regentag und stürmisch. Wir bleiben den Tag in Bobovisca | J53: 0 | K53: 0 | L53: 0 | M53: 0 | O53: 0 | P53: 0 | Q53: 1 | S53: 1
A54: =A53+1.4 -> 2019-05-28T09:36:00 | B54: ab | C54: Bobovisca | D54: 43.3278 | E54: 16.4461 | F54: stürmisch | G54: Dirk, Bea | J54: 0 | K54: 0 | L54: 0 | M54: 0 | O54: 0 | P54: =IF(OR(B54="H",B54="O"),0,IF(B54="ab",0,ROUNDUP((((A54-A53)/0.0416666666666667))/24,0))) -> 0 | Q54: =IF(OR(B54="H",B54="O"),ROUNDUP((((A54-A53)/0.0416666666666667))/24,0),0) -> 0
A55: =A54+0.35 -> 2019-05-28T18:00:00 | B55: an | C55: Sveti Ivan, Korcula | D55: 42.9721 | E55: 16.6744 | F55: stürmisch | G55: Dirk, Bea | H55: Eine stürmische Fahrt. Mal wieder gegen. Später starke Winddreher und flaute. Dann wieder bis 20kn Wind. Nach 6 Stunden entscheiden wir uns nach Sveti Ivan abzufallen. | J55: 41 | K55: =((A55-A54)*24)-L55 -> 7.9 | L55: 0.5 | M55: 8.4 | O55: 4.880952381 | P55: 1 | Q55: 0 | S55: 1
A56: =A55+0.65 -> 2019-05-29T09:36:00 | B56: ab | C56: Sveti Ivan, Korcula | D56: 42.9721 | E56: 16.6744 | F56: Sonne. Wolken. 20kn Wind | G56: Dirk, Bea | J56: 0 | K56: 0 | L56: 0 | M56: 0 | O56: 0 | P56: =IF(OR(B56="H",B56="O"),0,IF(B56="ab",0,ROUNDUP((((A56-A55)/0.0416666666666667))/24,0))) -> 0 | Q56: =IF(OR(B56="H",B56="O"),ROUNDUP((((A56-A55)/0.0416666666666667))/24,0),0) -> 0
A57: =A56+0.3 -> 2019-05-29T16:48:00 | B57: an | C57: Marina Korcula | D57: 42.9595 | E57: 17.1364 | F57: später teils Flaute, dann wieder zackig Wind im "Canale di Sabbioncello" | G57: Dirk, Bea | H57: Spannende Fahrt. 20+ kn Wind. Hohe Wellen. Die schieben uns zusammen mit dem Wind bis 11 kn Speed an. Neue Erfahrung. Mit dem Speed holen wir die Boote vor uns ein. Dannfängt das AIS an zu piepen. Später probiert uns ein Cat zu überholen. Knapp. Der kommt zwar vorbei, verliert aber viel Höhe. Später fällt der weit hinter uns. | J57: 32 | K57: =((A57-A56)*24)-L57 -> 6.7 | L57: 0.5 | M57: 7.2 | O57: 4.444444444 | P57: 1 | Q57: 0 | R57: 1
A58: =A57+0.73 -> 2019-05-30T10:19:12 | B58: ab | C58: Marina Korcula | D58: 42.9595 | E58: 17.1364 | F58: Sonnenschein. Regen. Flaute. | G58: Dirk, Bea | J58: 0 | K58: 0 | L58: 0 | M58: 0 | O58: 0 | P58: =IF(OR(B58="H",B58="O"),0,IF(B58="ab",0,ROUNDUP((((A58-A57)/0.0416666666666667))/24,0))) -> 0 | Q58: =IF(OR(B58="H",B58="O"),ROUNDUP((((A58-A57)/0.0416666666666667))/24,0),0) -> 0
A59: =A58+0.28 -> 2019-05-30T17:02:24 | B59: an | C59: Uvala Tatinica | D59: 42.786 | E59: 17.4056 | F59: Sonnenschein | G59: Dirk, Bea | H59: Guter Start. Dann Regen. Dann Flaute. Dann Sonnenschein und Flaute. Viele Wellen. Eine schier endlose Schaukelei. 5 Stunden Motor! Mooring an der Uvala Tatinica (Restaurant). Sehr nett. Mit Willkommensdrunkt!. | J59: 15 | K59: =((A59-A58)*24)-L59 -> 1.72 | L59: 5 | M59: 6.72 | O59: 2.232142857 | P59: 1 | Q59: 0 | R59: 1
A60: 2019-05-31 | B60: O | C60: Uvala Tatinica | D60: 42.786 | E60: 17.4056 | G60: Dirk, Bea | H60: Pausentag. Wanderung im Nationalpark von Mljet. Abends dann Lam Peka ("von unter der Glocke"). Sehr gut! Sehr nette Nachbarn. "Snoopy II" mit Johannes und Michaela. | J60: 0 | K60: 0 | L60: 0 | M60: 0 | O60: 0 | P60: 0 | Q60: 1 | R60: 1
A61: =A60+1.45 -> 2019-06-01T10:48:00 | B61: ab | C61: Uvala Tatinica | D61: 42.786 | E61: 17.4056 | G61: Dirk, Bea | J61: 0 | K61: 0 | L61: 0 | M61: 0 | O61: 0 | P61: =IF(OR(B61="H",B61="O"),0,IF(B61="ab",0,ROUNDUP((((A61-A60)/0.0416666666666667))/24,0))) -> 0 | Q61: =IF(OR(B61="H",B61="O"),ROUNDUP((((A61-A60)/0.0416666666666667))/24,0),0) -> 0
A62: =A61+0.18 -> 2019-06-01T15:07:12 | B62: an | C62: Mali Skolj | D62: 42.7042 | E62: 17.7441 | F62: Nord, Sonne, Wolke | G62: Dirk, Bea | H62: An der Nordküste Mljet's entlang. Sehr schöner Segeltag. | J62: 19 | K62: =((A62-A61)*24)-L62 -> 3.82 | L62: 0.5 | M62: 4.32 | O62: 4.398148148 | P62: 1 | Q62: 0 | R62: 1
A63: =A62+0.88 -> 2019-06-02T12:14:24 | B63: ab | C63: Mali Skolj | D63: 42.7042 | E63: 17.7441 | G63: Dirk, Bea | J63: 0 | K63: 0 | L63: 0 | M63: 0 | O63: 0 | P63: =IF(OR(B63="H",B63="O"),0,IF(B63="ab",0,ROUNDUP((((A63-A62)/0.0416666666666667))/24,0))) -> 0 | Q63: =IF(OR(B63="H",B63="O"),ROUNDUP((((A63-A62)/0.0416666666666667))/24,0),0) -> 0
A64: =A63+0.17 -> 2019-06-02T16:19:12 | B64: an | C64: Sudurad (Sipan) | D64: 42.7104 | E64: 17.913 | F64: Sonne. 0-5 Kn Wind | G64: Dirk, Bea | H64: Kurzer Hüpfer bei wenig Wind. Viel Motor. Anlegen an einer kleinen Hafenmole. Leider liegt die große Färe genau nebenan. Licht und Motor die ganze Nacht durch. | J64: 9 | K64: =((A64-A63)*24)-L64 -> 3.58 | L64: 0.5 | M64: 4.08 | O64: 2.205882353 | P64: 1 | Q64: 0 | R64: 1
A65: =A64+0.75 -> 2019-06-03T10:19:12 | B65: ab | C65: Sudurad (Sipan) | D65: 42.7104 | E65: 17.913 | G65: Dirk, Bea | J65: 0 | K65: 0 | L65: 0 | M65: 0 | O65: 0 | P65: =IF(OR(B65="H",B65="O"),0,IF(B65="ab",0,ROUNDUP((((A65-A64)/0.0416666666666667))/24,0))) -> 0 | Q65: =IF(OR(B65="H",B65="O"),ROUNDUP((((A65-A64)/0.0416666666666667))/24,0),0) -> 0
A66: =A65+0.15 -> 2019-06-03T13:55:12 | B66: an | C66: Dubrovnik | D66: 42.6701 | E66: 18.1252 | F66: Sonne, Regen, 0-7 Kn | G66: Dirk, Bea | H66: Regen in Dubrovnik. Anfang Juni. Grrrr. Netter Abend in "D'Vino" mit Weinprobe. | J66: 10 | K66: =((A66-A65)*24)-L66 -> 3.1 | L66: 0.5 | M66: 3.6 | O66: 2.777777778 | P66: 1 | Q66: 0 | R66: 1
A67: 2019-06-04 | B67: O | C67: Dubrovnik | D67: 42.6701 | E67: 18.1252 | F67: Regen | G67: Dirk, Bea | H67: Pausentag. | J67: 0 | K67: 0 | L67: 0 | M67: 0 | O67: 0 | P67: 0 | Q67: 1 | R67: 1
A68: =A67+1.35 -> 2019-06-05T08:24:00 | B68: ab | C68: Dubrovnik | D68: 42.6701 | E68: 18.1252 | G68: Dirk | J68: 0 | K68: 0 | L68: 0 | M68: 0 | O68: 0 | P68: =IF(OR(B68="H",B68="O"),0,IF(B68="ab",0,ROUNDUP((((A68-A67)/0.0416666666666667))/24,0))) -> 0 | Q68: =IF(OR(B68="H",B68="O"),ROUNDUP((((A68-A67)/0.0416666666666667))/24,0),0) -> 0
A69: =A68+0.55 -> 2019-06-05T21:36:00 | B69: an | C69: Tivat, Montenegro | D69: 42.4331 | E69: 18.6927 | F69: Sonne, Wolken, 5-17Kn Wind S | G69: Dirk | H69: Ausklariert in Cavtat. Dann, wie gewohnt, gegen den Wind nach Montenegro. | J69: 52 | K69: =((A69-A68)*24)-L69 -> 10.2 | L69: 3 | M69: 13.2 | O69: 3.939393939 | P69: 1 | Q69: 0 | R69: 1
A70: 2019-06-06 | B70: O | C70: Tivat, Montenegro | D70: 42.4331 | E70: 18.6927 | F70: Sonne! | G70: Dirk | H70: Pausentag. | J70: 0 | K70: 0 | L70: 0 | M70: =K70+L70 -> 0 | O70: 0 | P70: 0 | Q70: 1 | R70: 1
A71: =A70+1.5 -> 2019-06-07T12:00:00 | B71: ab | C71: Tivat, Montenegro | D71: 42.4331 | E71: 18.6927 | F71: Sonne! | G71: Dirk | J71: 0 | K71: 0 | L71: 0 | M71: 0 | O71: 0 | P71: =IF(OR(B71="H",B71="O"),0,IF(B71="ab",0,ROUNDUP((((A71-A70)/0.0416666666666667))/24,0))) -> 0 | Q71: =IF(OR(B71="H",B71="O"),ROUNDUP((((A71-A70)/0.0416666666666667))/24,0),0) -> 0
A72: =A71+0.2 -> 2019-06-07T16:48:00 | B72: an | C72: Morinj, Monenegro | D72: 42.4895 | E72: 18.6506 | F72: Sonne. Kein Wind | G72: Dirk | H72: In die Bucht von Kotor. Kein Wind. Motor. Später nach Marinj dann mal eine Böe mit 11kn, die ich sauber nutze. | J72: 16 | K72: =((A72-A71)*24)-L72 -> 1.3 | L72: 3.5 | M72: 4.8 | O72: 3.333333333 | P72: 1 | Q72: 0 | S72: 1
A73: =A72+0.61 -> 2019-06-08T07:26:24 | B73: ab | C73: Morinj, Monenegro | D73: 42.4895 | E73: 18.6506 | F73: Kein Windhauch. Sonne. | G73: Dirk | H73: Morinj - Tivat ~4.5nm, 2h unter Motor. Tanken 1.37 € / L. 7.5 Liter um 09:30. | J73: 0 | K73: 0 | L73: 0 | M73: =K73+L73 -> 0 | O73: 0 | P73: =IF(OR(B73="H",B73="O"),0,IF(B73="ab",0,ROUNDUP((((A73-A72)/0.0416666666666667))/24,0))) -> 0 | Q73: =IF(OR(B73="H",B73="O"),ROUNDUP((((A73-A72)/0.0416666666666667))/24,0),0) -> 0
A74: =A73+0.53 -> 2019-06-08T20:09:36 | B74: an | C74: Bar | D74: 42.099 | E74: 19.0864 | G74: Dirk | H74: Späte Ankunft. Nur ein Hilfs-Marinero, der aber nett ist. | J74: 52 | K74: =((A74-A73)*24)-L74 -> 9.22 | L74: 3.5 | M74: 12.72 | O74: 4.088050314 | P74: 1 | Q74: 0 | R74: 1
A75: =A74+0.6 -> 2019-06-09T10:33:36 | B75: ab | C75: Bar | D75: 42.099 | E75: 19.0864 | G75: Dirk | J75: 0 | K75: 0 | L75: 0 | M75: =K75+L75 -> 0 | O75: 0 | P75: =IF(OR(B75="H",B75="O"),0,IF(B75="ab",0,ROUNDUP((((A75-A74)/0.0416666666666667))/24,0))) -> 0 | Q75: =IF(OR(B75="H",B75="O"),ROUNDUP((((A75-A74)/0.0416666666666667))/24,0),0) -> 0
A76: =A75+1.2 -> 2019-06-10T15:21:36 | B76: an | C76: Santa Maria di Leuca, Italy | D76: 39.7971 | E76: 18.3641 | F76: Wind, Sonne, Nacht | G76: Dirk | H76: Von Bar nach Italien. Sonne, Wind, Flaute, Nacht. Anstrengende aber tolle Überfahrt. ETMAL: 124nm in 24h. | J76: 148 | K76: =((A76-A75)*24)-L76 -> 24.8 | L76: 4 | M76: 28.8 | O76: 5.138888889 | P76: 2 | Q76: 0 | R76: 1
A77: 2019-06-11 | B77: O | C77: Santa Maria di Leuca, Italy | D77: 39.7971 | E77: 18.3641 | F77: Sonne | G77: Dirk | H77: Pausentag. | J77: 0 | K77: 0 | L77: 0 | M77: 0 | O77: =IF(ISNUMBER(J77/M77),J77/M77,0) -> 0 | P77: 0 | Q77: 1 | R77: 1
A78: =A77+1.3 -> 2019-06-12T07:12:00 | B78: ab | C78: Santa Maria di Leuca, Italy | D78: 39.7971 | E78: 18.3641 | G78: Dirk | J78: 0 | K78: 0 | L78: 0 | M78: =K78+L78 -> 0 | O78: 0 | P78: =IF(OR(B78="H",B78="O"),0,IF(B78="ab",0,ROUNDUP((((A78-A77)/0.0416666666666667))/24,0))) -> 0 | Q78: =IF(OR(B78="H",B78="O"),ROUNDUP((((A78-A77)/0.0416666666666667))/24,0),0) -> 0
A79: =A78+0.5 -> 2019-06-12T19:12:00 | B79: an | C79: Cortone | D79: 39.0798 | E79: 17.1376 | F79: Sone, 10.15kn S | G79: Dirk | H79: Ein Rauschetag. Erst mit Code-Z über Stunden bei 7-9 Kn Fahrt. Später leichter Winddreher und mit Fock weiter. Marina Crotone 23 €/N. | J79: 74 | K79: =((A79-A78)*24)-L79 -> 11 | L79: 1 | M79: 12 | O79: 6.166666667 | P79: 1 | Q79: 0 | R79: 1
A80: =A79+0.62 -> 2019-06-13T10:04:48 | B80: ab | C80: Cortone | D80: 39.0798 | E80: 17.1376 | G80: Dirk | J80: 0 | K80: 0 | L80: 0 | M80: =K80+L80 -> 0 | O80: =IF(ISNUMBER(J80/M80),J80/M80,0) -> 0 | P80: =IF(OR(B80="H",B80="O"),0,IF(B80="ab",0,ROUNDUP((((A80-A79)/0.0416666666666667))/24,0))) -> 0 | Q80: =IF(OR(B80="H",B80="O"),ROUNDUP((((A80-A79)/0.0416666666666667))/24,0),0) -> 0
A81: =A80+0.22 -> 2019-06-13T15:21:36 | B81: an | C81: La Castella | D81: 38.9149 | E81: 17.0387 | F81: Sonne, 5-10kn NO | G81: Dirk | H81: Eigentlich sollten hier Bojen sein. Nix. Ankern in 5m Tiefe. Klares Wasser. Sand. Time for a swim. | J81: 22 | K81: =((A81-A80)*24)-L81 -> 4.28 | L81: 1 | M81: 5.28 | O81: 4.166666667 | P81: 1 | Q81: 0 | T81: 1
A82: =A81+0.62 -> 2019-06-14T06:14:24 | B82: ab | C82: La Castella | D82: 38.9149 | E82: 17.0387 | G82: Dirk | J82: 0 | K82: 0 | L82: 0 | M82: =K82+L82 -> 0 | O82: =IF(ISNUMBER(J82/M82),J82/M82,0) -> 0 | P82: =IF(OR(B82="H",B82="O"),0,IF(B82="ab",0,ROUNDUP((((A82-A81)/0.0416666666666667))/24,0))) -> 0 | Q82: =IF(OR(B82="H",B82="O"),ROUNDUP((((A82-A81)/0.0416666666666667))/24,0),0) -> 0
A83: =A82+0.51 -> 2019-06-14T18:28:48 | B83: an | C83: Porto delle Grazie | D83: 38.3284 | E83: 16.4339 | F83: Sonne, zur hälfte guter Wind, die andere Flaute. | G83: Dirk | H83: Kein so toller Segeltag. Brütend heiß und kaum Wind. | J83: 48 | K83: =((A83-A82)*24)-L83 -> 9.24 | L83: 3 | M83: 12.24 | O83: 3.921568627 | P83: 1 | Q83: 0 | R83: 1
A84: 2019-06-15 | B84: O | C84: Porto delle Grazie | D84: 38.3284 | E84: 16.4339 | F84: Sonne | G84: Dirk | H84: Pausentag. Heiß heute. Kein Windhauch. Uff. | J84: 0 | K84: 0 | L84: 0 | M84: 0 | O84: 0 | P84: 0 | Q84: 1 | R84: 1
A85: =A83+1.45 -> 2019-06-16T05:16:48 | B85: ab | C85: Porto delle Grazie | D85: 38.3284 | E85: 16.4339 | F85: 18kn. Entgegen. In der Früh noch kühl. | G85: Dirk | K85: 0 | L85: 0 | M85: =K85+L85 -> 0 | O85: =IF(ISNUMBER(J85/M85),J85/M85,0) -> 0 | P85: =IF(OR(B85="H",B85="O"),0,IF(B85="ab",0,ROUNDUP((((A85-A83)/0.0416666666666667))/24,0))) -> 0 | Q85: =IF(OR(B85="H",B85="O"),ROUNDUP((((A85-A83)/0.0416666666666667))/24,0),0) -> 0
A86: =A85+0.63 -> 2019-06-16T20:24:00 | B86: an | C86: Porto Reggio | D86: 38.1238 | E86: 15.6506 | J86: 74 | K86: =((A86-A85)*24)-L86 -> 9.12 | L86: 6 | M86: 15.12 | O86: 4.894179894 | P86: =IF(OR(B86="H",B86="O"),0,IF(B86="ab",0,ROUNDUP((((A86-A85)/0.0416666666666667))/24,0))) -> 1 | Q86: =IF(OR(B86="H",B86="O"),ROUNDUP((((A86-A85)/0.0416666666666667))/24,0),0) -> 0 | R86: 1
A87: =A86+0.32 -> 2019-06-17T04:04:48 | B87: ab | C87: Porto Reggio | D87: 38.1238 | E87: 15.6506 | F87: 18kn. Entgegen. In der Früh noch kühl. | G87: Dirk | H87: Es windet immer Noch. Früh los, damit es an der Engstelle mit der Strömung passt. Wirbel hier und da. Es schiebt mit 2 Knoten. Rechts, Links? Rechts. Ein kurzer Trip heute. Müde. | K87: 0 | L87: 0 | M87: =K87+L87 -> 0 | O87: =IF(ISNUMBER(J87/M87),J87/M87,0) -> 0 | P87: =IF(OR(B87="H",B87="O"),0,IF(B87="ab",0,ROUNDUP((((A87-A86)/0.0416666666666667))/24,0))) -> 0 | Q87: =IF(OR(B87="H",B87="O"),ROUNDUP((((A87-A86)/0.0416666666666667))/24,0),0) -> 0
A88: 2019-06-17T08:30:00 | B88: O | C88: Porto Bagnara Camara | D88: 38.2978 | E88: 15.8132 | F88: Sonne. Kein Wind | G88: Dirk | H88: Porto Bagnara Camara - What a shithole. Fake Marinero ripped me off 50 Euro and the Coast Guard told me to leave. | J88: 0 | K88: 0 | L88: 0 | M88: =K88+L88 -> 0 | O88: =IF(ISNUMBER(J88/M88),J88/M88,0) -> 0 | P88: =IF(OR(B88="H",B88="O"),0,IF(B88="ab",0,ROUNDUP((((A88-A86)/0.0416666666666667))/24,0))) -> 0 | Q88: 1 | R88: 1
A89: =A87+0.6 -> 2019-06-17T18:28:48 | B89: an | C89: Marina Poseidon | D89: 38.2299 | E89: 15.248 | F89: Sonne. Sonne. 5 Kn Wind. | G89: Dirk | H89: Wirbel hier und da. Es schiebt mit 2 Knoten. Um 07:00 bin ich durch. Geschafft. Nun? Rechts, Links? Rechts. Ein kurzer Trip heute. Müde. | J89: 46 | K89: =((A89-A87)*24)-L89 -> 8.4 | L89: 6 | M89: =K89+L89 -> 14.4 | O89: =IF(ISNUMBER(J89/M89),J89/M89,0) -> 3.194444444 | P89: =IF(OR(B89="H",B89="O"),0,IF(B89="ab",0,ROUNDUP((((A89-A87)/0.0416666666666667))/24,0))) -> 1 | Q89: =IF(OR(B89="H",B89="O"),ROUNDUP((((A89-A87)/0.0416666666666667))/24,0),0) -> 0 | R89: 1
A90: 2019-06-18 | B90: O | C90: Marina Poseidon | D90: 38.2299 | E90: 15.248 | F90: Bewölkt | G90: Dirk | H90: Pausentag | J90: 0 | K90: 0 | L90: 0 | M90: =K90+L90 -> 0 | O90: =IF(ISNUMBER(J90/M90),J90/M90,0) -> 0 | P90: =IF(OR(B90="H",B90="O"),0,IF(B90="ab",0,ROUNDUP((((A90-A88)/0.0416666666666667))/24,0))) -> 0 | Q90: 1 | R90: 1
A91: =A89+1.6 -> 2019-06-19T08:52:48 | B91: ab | C91: Marina Poseidon | D91: 38.2299 | E91: 15.248 | G91: Dirk | K91: 0 | L91: 0 | M91: =K91+L91 -> 0 | O91: =IF(ISNUMBER(J91/M91),J91/M91,0) -> 0 | P91: =IF(OR(B91="H",B91="O"),0,IF(B91="ab",0,ROUNDUP((((A91-A89)/0.0416666666666667))/24,0))) -> 0 | Q91: =IF(OR(B91="H",B91="O"),ROUNDUP((((A91-A89)/0.0416666666666667))/24,0),0) -> 0
A92: =A91+0.31 -> 2019-06-19T16:19:12 | B92: an | C92: Marina, Baia Levante | D92: 38.4139 | E92: 14.963 | F92: Sonne, wenig Wind | G92: Dirk | H92: Marina Baia Levante. An Schwimmstegen fest machen. Schaukelt und wackelt die ganze Zeit, da in der Nähe Schnellboote und Fähren anlegen. Abends den Vulcano bestiegen. Sehr beeindruckend. | J92: 24 | K92: =((A92-A91)*24)-L92 -> 2.44 | L92: 5 | M92: 7.44 | O92: 3.225806452 | P92: =IF(OR(B92="H",B92="O"),0,IF(B92="ab",0,ROUNDUP((((A92-A91)/0.0416666666666667))/24,0))) -> 1 | Q92: =IF(OR(B92="H",B92="O"),ROUNDUP((((A92-A91)/0.0416666666666667))/24,0),0) -> 0 | R92: 1
A93: =A91+1.05 -> 2019-06-20T10:04:48 | B93: ab | C93: Marina, Baia Levante | D93: 38.4139 | E93: 14.963 | F93: Sonne, wenig Wind | G93: Dirk | K93: 0 | L93: 0 | M93: =K93+L93 -> 0 | O93: =IF(ISNUMBER(J93/M93),J93/M93,0) -> 0 | P93: =IF(OR(B93="H",B93="O"),0,IF(B93="ab",0,ROUNDUP((((A93-A91)/0.0416666666666667))/24,0))) -> 0 | Q93: =IF(OR(B93="H",B93="O"),ROUNDUP((((A93-A91)/0.0416666666666667))/24,0),0) -> 0
A94: =A93+0.15 -> 2019-06-20T13:40:48 | B94: an | C94: Lepari, ankern | D94: 38.4573 | E94: 14.9349 | F94: Sonne. Sonne. | G94: Dirk | H94: Ankerplatz 8m, geschützt gegen Wind von Ost. Ruhige Nacht. Morgens um 02:00 aufegwacht, da sich die Ankerleine um den Kiel gewickelt hat. | J94: 7 | K94: =((A94-A93)*24)-L94 -> 1.1 | L94: 2.5 | M94: 3.6 | O94: 1.944444444 | P94: =IF(OR(B94="H",B94="O"),0,IF(B94="ab",0,ROUNDUP((((A94-A93)/0.0416666666666667))/24,0))) -> 1 | Q94: =IF(OR(B94="H",B94="O"),ROUNDUP((((A94-A93)/0.0416666666666667))/24,0),0) -> 0 | T94: 1
A95: =A93+0.87 -> 2019-06-21T06:57:36 | B95: ab | C95: Lepari, ankern | D95: 38.4573 | E95: 14.9349 | F95: Sonne. Wind 6kn. | G95: Dirk | K95: 0 | L95: 0 | M95: =K95+L95 -> 0 | O95: =IF(ISNUMBER(J95/M95),J95/M95,0) -> 0 | P95: =IF(OR(B95="H",B95="O"),0,IF(B95="ab",0,ROUNDUP((((A95-A93)/0.0416666666666667))/24,0))) -> 0 | Q95: =IF(OR(B95="H",B95="O"),ROUNDUP((((A95-A93)/0.0416666666666667))/24,0),0) -> 0
A96: =A95+0.5 -> 2019-06-21T18:57:36 | B96: an | C96: Filicudi, ankern | D96: 38.5559 | E96: 14.5815 | F96: Sonne, 0-15kn Wind | G96: Dirk | H96: Winddreher. Kein Wind. Große Rund bis zum Ankerplatz | J96: 51 | K96: =((A96-A95)*24)-L96 -> 10 | L96: 2 | M96: 12 | O96: 4.25 | P96: =IF(OR(B96="H",B96="O"),0,IF(B96="ab",0,ROUNDUP((((A96-A95)/0.0416666666666667))/24,0))) -> 1 | Q96: =IF(OR(B96="H",B96="O"),ROUNDUP((((A96-A95)/0.0416666666666667))/24,0),0) -> 0 | T96: 1
A97: =A95+0.98 -> 2019-06-22T06:28:48 | B97: ab | C97: Filicudi, ankern | D97: 38.5559 | E97: 14.5815 | F97: Sonne. Wind 6kn. | G97: Dirk | H97: Noch zum Tanken in den Hafen von Salina. Dann Ankerplatz suchen. | K97: 0 | L97: 0 | M97: =K97+L97 -> 0 | O97: =IF(ISNUMBER(J97/M97),J97/M97,0) -> 0 | P97: =IF(OR(B97="H",B97="O"),0,IF(B97="ab",0,ROUNDUP((((A97-A95)/0.0416666666666667))/24,0))) -> 0 | Q97: =IF(OR(B97="H",B97="O"),ROUNDUP((((A97-A95)/0.0416666666666667))/24,0),0) -> 0
A98: =A97+0.25 -> 2019-06-22T12:28:48 | B98: an | C98: Salina, ankerm | D98: 38.5523 | E98: 14.8694 | F98: Sonne | G98: Dirk | H98: Tags weing wind. Wind soll gegen 20 Uhr kommen. Dann los in Richtung Strombili. | J98: 19 | K98: =((A98-A97)*24)-L98 -> 5 | L98: 1 | M98: =K98+L98 -> 6 | O98: 3.166666667 | P98: =IF(OR(B98="H",B98="O"),0,IF(B98="ab",0,ROUNDUP((((A98-A97)/0.0416666666666667))/24,0))) -> 1 | Q98: =IF(OR(B98="H",B98="O"),ROUNDUP((((A98-A97)/0.0416666666666667))/24,0),0) -> 0 | T98: 1
A99: =A98+0.33 -> 2019-06-22T20:24:00 | B99: ab | C99: Salina, ankerm | D99: 38.5523 | E99: 14.8694 | F99: Sonne. Wind 6kn. | G99: Dirk | K99: 0 | L99: 0 | M99: 0 | O99: 0 | P99: =IF(OR(B99="H",B99="O"),0,IF(B99="ab",0,ROUNDUP((((A99-A97)/0.0416666666666667))/24,0))) -> 0 | Q99: =IF(OR(B99="H",B99="O"),ROUNDUP((((A99-A97)/0.0416666666666667))/24,0),0) -> 0
A100: =A99+0.4 -> 2019-06-23T06:00:00 | B100: an | C100: Stromboli, ankern | D100: 38.8024 | E100: 15.2436 | G100: Dirk | H100: Homer's Feuer leuchtet schon von weitem. Entlang der Lavarutsche und dann zum Ankerplatz.Eine sehr beeindruckende Fahrt. | J100: 27 | K100: =((A100-A99)*24)-L100 -> 2.6 | L100: 7 | M100: 9.6 | O100: 2.8125 | P100: =IF(OR(B100="H",B100="O"),0,IF(B100="ab",0,ROUNDUP((((A100-A99)/0.0416666666666667))/24,0))) -> 1 | Q100: =IF(OR(B100="H",B100="O"),ROUNDUP((((A100-A99)/0.0416666666666667))/24,0),0) -> 0 | T100: 1
A101: 2019-06-24 | B101: O | C101: Stromboli, ankern | D101: 38.8024 | E101: 15.2436 | F101: Sonne | G101: Dirk | H101: Pausentag | J101: 0 | K101: 0 | L101: 0 | M101: =K101+L101 -> 0 | O101: =IF(ISNUMBER(J101/M101),J101/M101,0) -> 0 | P101: =IF(OR(B101="H",B101="O"),0,IF(B101="ab",0,ROUNDUP((((A101-A99)/0.0416666666666667))/24,0))) -> 0 | Q101: 1 | R101: 1
A102: =A101+0.32 -> 2019-06-24T07:40:48 | B102: ab | C102: Stromboli, ankern | D102: 38.8024 | E102: 15.2436 | G102: Dirk | H102: Richtung Nord. | K102: 0 | L102: 0 | M102: =K102+L102 -> 0 | O102: =IF(ISNUMBER(J102/M102),J102/M102,0) -> 0 | P102: =IF(OR(B102="H",B102="O"),0,IF(B102="ab",0,ROUNDUP((((A102-A100)/0.0416666666666667))/24,0))) -> 0 | Q102: =IF(OR(B102="H",B102="O"),ROUNDUP((((A102-A100)/0.0416666666666667))/24,0),0) -> 0
A103: =A102+0.5 -> 2019-06-24T19:40:48 | B103: an | G103: Dirk | J103: 51 | K103: =((A103-A102)*24)-L103 -> 10 | L103: 2 | M103: 12 | O103: 4.25 | P103: =IF(OR(B103="H",B103="O"),0,IF(B103="ab",0,ROUNDUP((((A103-A102)/0.0416666666666667))/24,0))) -> 1 | Q103: =IF(OR(B103="H",B103="O"),ROUNDUP((((A103-A102)/0.0416666666666667))/24,0),0) -> 0 | T103: 1
A289: last - dont delete

Sheet WPts
A1: <?xml version="1.0" encoding="UTF-8" ?>
A2: <kml xmlns:atom="http://www.w3.org/2005/Atom" xmlns="http://www.opengis.net/kml/2.2" xmlns:gx="http://www.google.com/kml/ext/2.2" xmlns:kml="http://www.opengis.net/kml/2.2">
A3: <Document>
A4: <name>OpenCPN Waypoint</name>
A5: <Placemark>
A6: <name></name>
A7: <description></description>
A8: <Point>
A9: <coordinates>13.8517,44.8276,0. </coordinates>
A10: </Point>
A11: </Placemark>
A12: </Document>
A13: </kml>
A15: <?xml version="1.0" encoding="UTF-8" ?>
A16: <kml xmlns:atom="http://www.w3.org/2005/Atom" xmlns="http://www.opengis.net/kml/2.2" xmlns:gx="http://www.google.com/kml/ext/2.2" xmlns:kml="http://www.opengis.net/kml/2.2">
A17: <Document>
A18: <name>Krivica</name>
A19: <Placemark>
A20: <name></name>
A21: <description></description>
A22: <Point>
A23: <coordinates>14.4954,44.5009,0. </coordinates>
A24: </Point>
A25: </Placemark>
A26: </Document>
A27: </kml>
A29: <?xml version="1.0" encoding="UTF-8" ?>
A30: <kml xmlns:atom="http://www.w3.org/2005/Atom" xmlns="http://www.opengis.net/kml/2.2" xmlns:gx="http://www.google.com/kml/ext/2.2" xmlns:kml="http://www.opengis.net/kml/2.2">
A31: <Document>
A32: <name>Veli Rat</name>
A33: <Placemark>
A34: <name></name>
A35: <description></description>
A36: <Point>
A37: <coordinates>14.8351,44.147,0. </coordinates>
A38: </Point>
A39: </Placemark>
A40: </Document>
A41: </kml>
A43: <?xml version="1.0" encoding="UTF-8" ?>
A44: <kml xmlns:atom="http://www.w3.org/2005/Atom" xmlns="http://www.opengis.net/kml/2.2" xmlns:gx="http://www.google.com/kml/ext/2.2" xmlns:kml="http://www.opengis.net/kml/2.2">
A45: <Document>
A46: <name>Uvala Soline</name>
A47: <Placemark>
A48: <name></name>
A49: <description></description>
A50: <Point>
A51: <coordinates>15.3612,43.9251,0. </coordinates>
A52: </Point>
A53: </Placemark>
A54: </Document>
A55: </kml>
A57: <?xml version="1.0" encoding="UTF-8" ?>
A58: <kml xmlns:atom="http://www.w3.org/2005/Atom" xmlns="http://www.opengis.net/kml/2.2" xmlns:gx="http://www.google.com/kml/ext/2.2" xmlns:kml="http://www.opengis.net/kml/2.2">
A59: <Document>
A60: <name>Borovnjak</name>
A61: <Placemark>
A62: <name>Borovnjak</name>
A63: <description></description>
A64: <Point>
A65: <coordinates>15.6645,43.697,0. </coordinates>
A66: </Point>
A67: </Placemark>
A68: </Document>
A69: </kml>
A71: <?xml version="1.0" encoding="UTF-8" ?>
A72: <kml xmlns:atom="http://www.w3.org/2005/Atom" xmlns="http://www.opengis.net/kml/2.2" xmlns:gx="http://www.google.com/kml/ext/2.2" xmlns:kml="http://www.opengis.net/kml/2.2">
A73: <Document>
A74: <name>OpenCPN Waypoint</name>
A75: <Placemark>
A76: <name>Prvic</name>
A77: <description></description>
A78: <Point>
A79: <coordinates>15.7981,43.7234,0. </coordinates>
A80: </Point>
A81: </Placemark>
A82: </Document>
A83: </kml>
A85: <?xml version="1.0" encoding="UTF-8" ?>
A86: <kml xmlns:atom="http://www.w3.org/2005/Atom" xmlns="http://www.opengis.net/kml/2.2" xmlns:gx="http://www.google.com/kml/ext/2.2" xmlns:kml="http://www.opengis.net/kml/2.2">
A87: <Document>
A88: <name>OpenCPN Waypoint</name>
A89: <Placemark>
A90: <name>Uvala Sesula</name>
A91: <description></description>
A92: <Point>
A93: <coordinates>16.2059,43.3912,0. </coordinates>
A94: </Point>
A95: </Placemark>
A96: </Document>
A97: </kml>
A100: <?xml version="1.0" encoding="UTF-8" ?>
A101: <kml xmlns:atom="http://www.w3.org/2005/Atom" xmlns="http://www.opengis.net/kml/2.2" xmlns:gx="http://www.google.com/kml/ext/2.2" xmlns:kml="http://www.opengis.net/kml/2.2">
A102: <Document>
A103: <name>OpenCPN Waypoint</name>
A104: <Placemark>
A105: <name>Trogir</name>
A106: <description></description>
A107: <Point>
A108: <coordinates>16.2464,43.5136,0. </coordinates>
A109: </Point>
A110: </Placemark>
A111: </Document>
A112: </kml>
A115: <?xml version="1.0" encoding="UTF-8" ?>
A116: <kml xmlns:atom="http://www.w3.org/2005/Atom" xmlns="http://www.opengis.net/kml/2.2" xmlns:gx="http://www.google.com/kml/ext/2.2" xmlns:kml="http://www.opengis.net/kml/2.2">
A117: <Document>
A118: <name>OpenCPN Waypoint</name>
A119: <Placemark>
A120: <name>Bobovisca</name>
A121: <description></description>
A122: <Point>
A123: <coordinates>16.4461,43.3278,0. </coordinates>
A124: </Point>
A125: </Placemark>
A126: </Document>
A127: </kml>
A130: <?xml version="1.0" encoding="UTF-8" ?>
A131: <kml xmlns:atom="http://www.w3.org/2005/Atom" xmlns="http://www.opengis.net/kml/2.2" xmlns:gx="http://www.google.com/kml/ext/2.2" xmlns:kml="http://www.opengis.net/kml/2.2">
A132: <Document>
A133: <name>OpenCPN Waypoint</name>
A134: <Placemark>
A135: <name>Sveti Ivan</name>
A136: <description></description>
A137: <Point>
A138: <coordinates>16.6744,42.9721,0. </coordinates>
A139: </Point>
A140: </Placemark>
A141: </Document>
A142: </kml>
A145: <?xml version="1.0" encoding="UTF-8" ?>
A146: <kml xmlns:atom="http://www.w3.org/2005/Atom" xmlns="http://www.opengis.net/kml/2.2" xmlns:gx="http://www.google.com/kml/ext/2.2" xmlns:kml="http://www.opengis.net/kml/2.2">
A147: <Document>
A148: <name>OpenCPN Waypoint</name>
A149: <Placemark>
A150: <name>Marina Korcula</name>
A151: <description></description>
A152: <Point>
A153: <coordinates>17.1364,42.9595,0. </coordinates>
A154: </Point>
A155: </Placemark>
A156: </Document>
A157: </kml>
A160: <?xml version="1.0" encoding="UTF-8" ?>
A161: <kml xmlns:atom="http://www.w3.org/2005/Atom" xmlns="http://www.opengis.net/kml/2.2" xmlns:gx="http://www.google.com/kml/ext/2.2" xmlns:kml="http://www.opengis.net/kml/2.2">
A162: <Document>
A163: <name>OpenCPN Waypoint</name>
A164: <Placemark>
A165: <name>Uvala Tatinica</name>
A166: <description></description>
A167: <Point>
A168: <coordinates>17.4056,42.786,0. </coordinates>
A169: </Point>
A170: </Placemark>
A171: </Document>
A172: </kml>
A174: <?xml version="1.0" encoding="UTF-8" ?>
A175: <kml xmlns:atom="http://www.w3.org/2005/Atom" xmlns="http://www.opengis.net/kml/2.2" xmlns:gx="http://www.google.com/kml/ext/2.2" xmlns:kml="http://www.opengis.net/kml/2.2">
A176: <Document>
A177: <name>OpenCPN Waypoint</name>
A178: <Placemark>
A179: <name>Mali Skolj</name>
A180: <description></description>
A181: <Point>
A182: <coordinates>17.7441,42.7042,0. </coordinates>
A183: </Point>
A184: </Placemark>
A185: </Document>
A186: </kml>
A189: <?xml version="1.0" encoding="UTF-8" ?>
A190: <kml xmlns:atom="http://www.w3.org/2005/Atom" xmlns="http://www.opengis.net/kml/2.2" xmlns:gx="http://www.google.com/kml/ext/2.2" xmlns:kml="http://www.opengis.net/kml/2.2">
A191: <Document>
A192: <name>OpenCPN Waypoint</name>
A193: <Placemark>
A194: <name>Sudurad</name>
A195: <description></description>
A196: <Point>
A197: <coordinates>17.913,42.7104,0. </coordinates>
A198: </Point>
A199: </Placemark>
A200: </Document>
A201: </kml>
A204: <?xml version="1.0" encoding="UTF-8" ?>
A205: <kml xmlns:atom="http://www.w3.org/2005/Atom" xmlns="http://www.opengis.net/kml/2.2" xmlns:gx="http://www.google.com/kml/ext/2.2" xmlns:kml="http://www.opengis.net/kml/2.2">
A206: <Document>
A207: <name>OpenCPN Waypoint</name>
A208: <Placemark>
A209: <name>Dubrovnik</name>
A210: <description></description>
A211: <Point>
A212: <coordinates>18.1252,42.6701,0. </coordinates>
A213: </Point>
A214: </Placemark>
A215: </Document>
A216: </kml>
A219: <?xml version="1.0" encoding="UTF-8" ?>
A220: <kml xmlns:atom="http://www.w3.org/2005/Atom" xmlns="http://www.opengis.net/kml/2.2" xmlns:gx="http://www.google.com/kml/ext/2.2" xmlns:kml="http://www.opengis.net/kml/2.2">
A221: <Document>
A222: <name>OpenCPN Waypoint</name>
A223: <Placemark>
... 190 more rows

Sheet Motorbook_FleurdRapide
A1: Fleur d'Ocean | K1: Tankinhalt 12L (+5L)
A4: Total | B4: =SUM(B6:B16) -> 69.8 | D4: =MAX(D6:D16) -> 12.5 | H4: =AVERAGE(H6:H16) -> 0.9179551821 | I4: =AVERAGE(I6:I16) -> 0.3412560105
A5: Datum | B5: Liter | C5: Euro | D5: Motor h | E5: Gesamt h | F5: Distanz | G5: Kommentar | H5: Verbrauch [L/h] | I5: Verbrauch [L/nm] | K5: Rest L im Tank | L5: Rest H | M5: Rest nm
A6: Verbrauch seit letzten Tanken | K6: 0 | L6: =K6/H$4 -> 0 | M6: =K6/I$4 -> 0
A7: 07.05.2019 | B7: 12 | C7: =B7*1.56 -> 18.72 | D7: 12 | F7: 36 | G7: Tanken | H7: 1 | I7: 0.33 | K7: =17-B7 -> 5 | L7: =K7/H$4 -> 5.446889018 | M7: =K7/I$4 -> 14.65175659
A8: 21.05.2019 | B8: 7 | D8: 8 | F8: 24 | G8: Tanken | H8: =B8/D8 -> 0.875 | I8: =B8/F8 -> 0.2916666667 | K8: 10 | L8: 10.89377804 | M8: 29.30351318
A9: 03.06.2019 | B9: 11.3 | D9: 12 | F9: 35 | G9: Tanken | H9: 0.9416666667 | I9: 0.3228571429 | K9: 5.7 | L9: 6.20945348 | M9: 16.70300251
A10: 08.06.2019 | B10: 7.5 | C10: 10,21 | D10: 8.5 | F10: 22 | G10: Tanken | H10: 0.8823529412 | I10: 0.3409090909 | K10: 9.5 | L10: 10.34908913 | M10: 27.83833752
A11: 15.06.2019 | B11: 12 | C11: 24 | D11: 12.5 | F11: 27 | G11: Tanken | H11: =B11/D11 -> 0.96 | I11: =B11/F11 -> 0.4444444444 | K11: 5 | L11: =K11/H$4 -> 5.446889018 | M11: =K11/I$4 -> 14.65175659
A12: 18.06.2019 | B12: 14 | C12: 25 | D12: 12 | F12: 43 | G12: Tanken | H12: =B12/D12 -> 1.166666667 | I12: =B12/F12 -> 0.3255813953 | K12: =17-B12 -> 3 | L12: =K12/H$4 -> 3.268133411 | M12: =K12/I$4 -> 8.791053953
A13: 22.06.2019 | B13: 6 | C13: 12 | D13: 10 | F13: 18 | G13: Tanken | H13: =B13/D13 -> 0.6 | I13: =B13/F13 -> 0.3333333333 | K13: =17-B13 -> 11 | L13: =K13/H$4 -> 11.98315584 | M13: =K13/I$4 -> 32.23386449

Sheet SSC27

Sheet Logbook_FleurdOcean
G1: SUMME | H1: avg speed | I1: nm | J1: sail (h) | K1: mot (h) | M1: Sail | N1: hrb | O1: anker / boje /other | S1: days underway
H2: =I2/J4 -> 4.888664535 | I2: =SUM(I6:I271) -> 4358 | J2: =J4-K2 -> 523.45 | K2: =MAX(K6:K271)-257 -> 368 | M2: =SUM(M6:M271)-2 -> 83 | N2: =SUM(N6:N271) -> 37 | O2: =SUM(O6:O271) -> 8 | P2: =SUM(P6:P271) -> 52 | Q2: =SUM(Q6:Q271) -> 22 | S2: =(((A9-A268)/0.0416666666666667))/24 -> 128
C3: MMSI | D3: CallSign | J3: hours | K3: hours | M3: days | N3: days | O3: days
A4: Fleur d'Ocean | C4: 211637140 | D4: DB7866 | F4: alle Zeiten Bordzeit (Sommerzeit D) | J4: =SUM(J6:J271) -> 891.45 | K4: gesamt
A6: Date | C6: Location | D6: Lat | E6: Lon | F6: comments, sightings, … | H6: Avg | I6: dist (nm) | J6: Segel (h) | K6: Motor (h) | M6: Saildays | N6: Harbour (days) | O6: Anchor (days) | P6: Harbours | Q6: Others
A9: 2014-08-16
A10: 2014-08-15T12:30:00 | B10: an | C10: Laboe | D10: 54399 | E10: 10211 | F10: Ende. Angekommen! | H10: =I10/J10 -> 5.133333333 | I10: 154 | J10: =(A10-A11)/0.0416666666666667 -> 30 | K10: 625 | M10: =ROUNDUP((((A10-A11)/0.0416666666666667))/24,0) -> 2 | P10: 1 | S10: D
A11: 2014-08-14T06:30:00 | B11: ab | C11: Grenaa | N11: =ROUNDDOWN(((($A11-$A13)/0.0416666666666667))/24,0) -> 0 | S11: DK
S12: DK
A13: 2014-08-13T22:15:00 | B13: an | C13: Grenaa | H13: =I13/J13 -> 5 | I13: 70 | J13: =(A13-A14)/0.0416666666666667 -> 14 | K13: 615 | M13: =ROUNDUP((((A13-A14)/0.0416666666666667))/24,0) -> 1 | P13: 1 | S13: DK
A14: 2014-08-13T08:15:00 | B14: ab | C14: Aalborg | D14: 57056 | E14: 9876 | F14: Sonne, Sturm, Unwetter, Sonne | N14: =ROUNDDOWN(((($A14-$A16)/0.0416666666666667))/24,0) -> 3 | S14: DK
S15: DK
A16: 2014-08-09T18:30:00 | B16: an | C16: Aalborg | D16: 57056 | E16: 9876 | F16: Sturm "Berta!, Impeller Getauscht | H16: =I16/J16 -> 3.545454545 | I16: 39 | J16: =(A16-A17)/0.0416666666666667 -> 11 | K16: 613 | M16: =ROUNDUP((((A16-A17)/0.0416666666666667))/24,0) -> 1 | P16: 1 | S16: DK
A17: 2014-08-09T07:30:00 | B17: ab | C17: Engelstoer Odde | D17: 56835 | E17: 9065 | O17: =ROUNDDOWN(((($A17-$A19)/0.0416666666666667))/24,0) -> 0 | S17: DK
S18: DK
A19: 2014-08-08T16:30:00 | B19: an | C19: Engelstoer Odde | D19: 56835 | E19: 9065 | H19: =I19/J19 -> 5.75 | I19: 46 | J19: =(A19-A20)/0.0416666666666667 -> 8 | K19: 605 | M19: =ROUNDUP((((A19-A20)/0.0416666666666667))/24,0) -> 1 | Q19: 1 | S19: DK
A20: 2014-08-08T08:30:00 | B20: ab | C20: Thyboroen | D20: 56716 | E20: 8200 | N20: =ROUNDDOWN(((($A20-$A22)/0.0416666666666667))/24,0) -> 1 | S20: DK
S21: DK
A22: 2014-08-07T02:20:00 | B22: an | C22: Thyboroen | D22: 56716 | E22: 8200 | F22: 437 nm | H22: =I22/J22 -> 5.389516958 | I22: 437 | J22: =(A22-A26)/0.0416666666666667 -> 81.08333333 | K22: 600 | M22: =ROUNDUP((((A22-A26)/0.0416666666666667))/24,0) -> 4 | P22: 1 | S22: DK
A23: 2014-08-06T18:00:00 | B23: u | D23: 56435 | E23: 6858 | F23: 386 nm, 146 nm ETMAL | S23: GB
A24: 2014-08-05T18:00:00 | B24: u | D24: 56859 | E24: 2548 | F24: 240 nm, 125 nm ETMAL | S24: GB
A25: 2014-08-04T18:30:00 | B25: u | D25: 57408 | E25: -1.089 | F25: 115 nm, 115 nm ETMAL | S25: GB
A26: 2014-08-03T17:15:00 | B26: ab | C26: Inverness | D26: 57486 | E26: -4.252 | F26: Beatrice ist wieder abgereist. | N26: =ROUNDDOWN(((($A26-$A28)/0.0416666666666667))/24,0) -> 1 | S26: GB
S27: GB
A28: 2014-08-02T13:30:00 | B28: an | C28: Inverness, Caledonian Canal | F28: Besuch an bord. | H28: =I28/J28 -> 1.866666667 | I28: 7 | J28: =(A28-A29)/0.0416666666666667 -> 3.75 | K28: 562 | M28: =ROUNDUP((((A28-A29)/0.0416666666666667))/24,0) -> 1 | P28: 1 | S28: GB
A29: 2014-08-02T09:45:00 | B29: ab | C29: Loch Dochfour, Caledonian Canal | F29: Besuch an bord. | N29: =ROUNDDOWN(((($A29-$A31)/0.0416666666666667))/24,0) -> 0 | S29: GB
S30: GB
A31: 2014-08-01T16:30:00 | B31: an | C31: Loch Dochfour, Caledonian Canal | F31: Besuch an bord. | H31: =I31/J31 -> 4.19047619 | I31: 22 | J31: =(A31-A32)/0.0416666666666667 -> 5.25 | K31: 558 | M31: =ROUNDUP((((A31-A32)/0.0416666666666667))/24,0) -> 1 | P31: 1 | S31: GB
A32: 2014-08-01T11:15:00 | B32: ab | C32: Ford Augustus, Caledonian Canal | F32: Loch Ness | N32: =ROUNDDOWN(((($A32-$A34)/0.0416666666666667))/24,0) -> 0 | S32: GB
S33: GB
A34: 2014-07-31T18:45:00 | B34: an | C34: Ford Augustus, Caledonian Canal | F34: Besuch an bord. | H34: =I34/J34 -> 2.424242424 | I34: 20 | J34: =(A34-A35)/0.0416666666666667 -> 8.25 | K34: 553 | M34: =ROUNDUP((((A34-A35)/0.0416666666666667))/24,0) -> 1 | P34: 1 | S34: GB
A35: 2014-07-31T10:30:00 | B35: ab | C35: Gairlochy, Caledonian Canal | F35: Besuch an bord. | N35: =ROUNDDOWN(((($A35-$A37)/0.0416666666666667))/24,0) -> 0 | S35: GB
F36: Besuch an bord. | S36: GB
A37: 2014-07-30T17:30:00 | B37: an | C37: Gairlochy, Caledonian Canal | F37: Regen, Nebel, Sonne. 198 GBP, incl. Berth, showers, facilities | H37: =I37/J37 -> 2.153846154 | I37: 21 | J37: =(A37-A38)/0.0416666666666667 -> 9.75 | K37: 550 | M37: =ROUNDUP((((A37-A38)/0.0416666666666667))/24,0) -> 1 | P37: 1 | S37: GB
A38: 2014-07-30T07:45:00 | B38: ab | C38: Kentallen | D38: 56670 | E38: -5.251 | F38: Besuch an bord. | O38: =ROUNDDOWN(((($A38-$A40)/0.0416666666666667))/24,0) -> 0 | S38: GB
S39: GB
A40: 2014-07-29T16:15:00 | B40: an | C40: Kentallen | D40: 56670 | E40: -5.251 | F40: Besuch an bord. | H40: =I40/J40 -> 5.428571428 | I40: 19 | J40: =(A40-A41)/0.0416666666666667 -> 3.5 | K40: 548 | M40: =ROUNDUP((((A40-A41)/0.0416666666666667))/24,0) -> 1 | Q40: 1 | S40: GB
A41: 2014-07-29T12:45:00 | B41: ab | C41: Oban, Heather Island | D41: 56410 | E41: -5.500 | F41: Besuch an bord. Tanken. Gasflsche neu. | O41: =ROUNDDOWN(((($A41-$A43)/0.0416666666666667))/24,0) -> 0 | S41: GB
S42: GB
A43: 2014-07-28T22:00:00 | B43: an | C43: Oban, Heather Island | D43: 56410 | E43: -5.500 | F43: Besuch an bord. Rund Mull. Stuffa Island. Wenig Wind, viel Sonne. Seals, Delphine, Basstölpel, Puffins. | H43: =I43/J43 -> 5.132075472 | I43: 68 | J43: =(A43-A44)/0.0416666666666667 -> 13.25 | K43: 542 | M43: =ROUNDUP((((A43-A44)/0.0416666666666667))/24,0) -> 1 | Q43: 1 | S43: GB
A44: 2014-07-28T08:45:00 | B44: ab | C44: Tobermory | D44: 56622 | E44: -6.058 | F44: Dinner im "Cafe Fish". Excellentes Essen! | O44: =ROUNDDOWN(((($A44-$A46)/0.0416666666666667))/24,0) -> 0 | S44: GB
S45: GB
A46: 2014-07-27T15:30:00 | B46: an | C46: Tobermory | D46: 56622 | E46: -6.058 | F46: Wind und Strömung sind gegen uns. Es geht sehr langsam nach Tobermorry | H46: =I46/J46 -> 5.166666667 | I46: 31 | J46: =(A46-A47)/0.0416666666666667 -> 6 | K46: 538 | M46: =ROUNDUP((((A46-A47)/0.0416666666666667))/24,0) -> 1 | Q46: 1 | S46: GB
A47: 2014-07-27T09:30:00 | B47: ab | C47: Oban | D47: 56411 | E47: -5.487 | O47: =ROUNDDOWN(((($A47-$A49)/0.0416666666666667))/24,0) -> 0 | S47: GB
S48: GB
A49: 2014-07-26T18:30:00 | B49: an | C49: Oban | D49: 56411 | E49: -5.487 | F49: Großstadt. Bea abholen. | H49: =I49/J49 -> 5.263157895 | I49: 25 | J49: =(A49-A50)/0.0416666666666667 -> 4.75 | K49: 531 | M49: =ROUNDUP((((A49-A50)/0.0416666666666667))/24,0) -> 1 | Q49: 1 | S49: GB
A50: 2014-07-26T13:45:00 | B50: ab | C50: Tobermory | D50: 56622 | E50: -6.058 | O50: =ROUNDDOWN(((($A50-$A52)/0.0416666666666667))/24,0) -> 0 | S50: GB
S51: GB
A52: 2014-07-25T17:00:00 | B52: an | C52: Tobermory | D52: 56622 | E52: -6.058 | F52: Hafen mit Bojenpätzen (15 GBP) | H52: =I52/J52 -> 5.333333333 | I52: 44 | J52: =(A52-A53)/0.0416666666666667 -> 8.25 | K52: 526 | M52: =ROUNDUP((((A52-A53)/0.0416666666666667))/24,0) -> 1 | Q52: 1 | S52: GB
A53: 2014-07-25T08:45:00 | B53: ab | C53: Canna | D53: 57055 | E53: -6.494 | O53: =ROUNDDOWN(((($A53-$A55)/0.0416666666666667))/24,0) -> 0 | S53: GB
S54: GB
A55: 2014-07-24T18:30:00 | B55: an | C55: Canna | D55: 57055 | E55: -6.494 | F55: Idyllisch. Ankern vor dem Kirchturm. Sehr nettes Restaurant | H55: =I55/J55 -> 4.4 | I55: 44 | J55: =(A55-A56)/0.0416666666666667 -> 10 | K55: 520 | M55: =ROUNDUP((((A55-A56)/0.0416666666666667))/24,0) -> 1 | Q55: 1 | S55: GB
A56: 2014-07-24T08:30:00 | B56: ab | C56: Loch Maddy | D56: 57594 | E56: -7.155 | N56: =ROUNDDOWN(((($A56-$A58)/0.0416666666666667))/24,0) -> 0 | S56: GB
S57: GB
A58: 2014-07-23T14:15:00 | B58: an | C58: Loch Maddy | D58: 57594 | E58: -7.155 | H58: =I58/J58 -> 3.80952381 | I58: 20 | J58: =(A58-A59)/0.0416666666666667 -> 5.25 | K58: 510 | M58: =ROUNDUP((((A58-A59)/0.0416666666666667))/24,0) -> 1 | P58: 1 | S58: GB
A59: 2014-07-23T09:00:00 | B59: ab | C59: Loch Stockinish | O59: =ROUNDDOWN(((($A59-$A61)/0.0416666666666667))/24,0) -> 0 | S59: GB
S60: GB
A61: 2014-07-22T17:15:00 | B61: an | C61: Loch Stockinish / Outer Hebrieds | D61: 57826849 | E61: -6848465 | H61: =I61/J61 -> 4.555555556 | I61: 41 | J61: =(A61-A62)/0.0416666666666667 -> 9 | K61: 506 | M61: =ROUNDUP((((A61-A62)/0.0416666666666667))/24,0) -> 1 | Q61: 1 | S61: GB
A62: 2014-07-22T08:15:00 | B62: ab | C62: Badachro | D62: 57704 | E62: -5.724 | F62: 19 Pfund für 2 Nächte. Leider bleibe ich nur eine Nacht. Badachro Restaurant ist Super ! | O62: =ROUNDDOWN(((($A62-$A64)/0.0416666666666667))/24,0) -> 0 | S62: GB
S63: GB
A64: 2014-07-21T15:45:00 | B64: an | C64: Badachro | D64: 57704 | E64: -5.724 | F64: 19 Pfund für 2 Nächte. Leider bleibe ich nur eine Nacht. Badachro Restaurant ist Super ! | H64: =I64/J64 -> 4.933333333 | I64: 37 | J64: =(A64-A65)/0.0416666666666667 -> 7.5 | K64: 500 | M64: =ROUNDUP((((A64-A65)/0.0416666666666667))/24,0) -> 1 | Q64: 1 | S64: GB
A65: 2014-07-21T08:15:00 | B65: ab | C65: Ullapool | D65: 57893 | E65: -5.153 | F65: Windstille. Nebel. Seehund und Delphine. Fischer um Morgendunst. | O65: =ROUNDDOWN(((($A65-$A67)/0.0416666666666667))/24,0) -> 1 | S65: GB
S66: GB
A67: 2014-07-19T17:15:00 | B67: an | C67: Ullapool | D67: 57893 | E67: -5.153 | F67: Sehr touristisch. Liege an einer Gästeboje | H67: =I67/J67 -> 5.485714286 | I67: 48 | J67: =(A67-A68)/0.0416666666666667 -> 8.75 | K67: 491 | M67: =ROUNDUP((((A67-A68)/0.0416666666666667))/24,0) -> 1 | Q67: 1 | S67: GB
A68: 2014-07-19T08:30:00 | B68: ab | C68: Kinlochbervie | D68: 58457 | E68: -5.049 | F68: Ein Seal im Hafen. Am Vogelfelsen Handa Island vorbei. Starke Düseneffekte nahe unter Land. Gusty. | N68: =ROUNDDOWN(((($A68-$A70)/0.0416666666666667))/24,0) -> 0 | S68: GB
S69: GB
A70: 2014-07-18T19:00:00 | B70: an | C70: Kinlochbervie | D70: 58457 | E70: -5.049 | F70: 20 Knoten Wind von schräg hinten. Musste mich kuzr vor dem Ziel übergebn. Delphine an Cape Wrath. Flugzeugträger. | H70: =I70/J70 -> 6.322580645 | I70: 98 | J70: =(A70-A71)/0.0416666666666667 -> 15.5 | K70: 491 | M70: =ROUNDUP((((A70-A71)/0.0416666666666667))/24,0) -> 1 | P70: 1 | S70: GB
A71: 2014-07-18T03:30:00 | B71: ab | C71: Pierowall | D71: 59319 | E71: -2.983 | F71: Orkneys, Sehr netter Hafen. Fresh Crabs | N71: =ROUNDDOWN(((($A71-$A73)/0.0416666666666667))/24,0) -> 1 | S71: GB
S72: GB
A73: 2014-07-16T17:30:00 | B73: an | C73: Pierowall | D73: 59319 | E73: -2.983 | F73: Orkneys, Sehr netter Hafen. Fresh Crabs | H73: =I73/J73 -> 6.214285714 | I73: 87 | J73: =(A73-A74)/0.0416666666666667 -> 14 | K73: 487 | M73: =ROUNDUP((((A73-A74)/0.0416666666666667))/24,0) -> 1 | P73: 1 | S73: GB
A74: 2014-07-16T03:30:00 | B74: ab | C74: Lerwick | D74: 60153 | E74: -1.140 | F74: Shetland | N74: =ROUNDDOWN(((($A74-$A76)/0.0416666666666667))/24,0) -> 2 | S74: GB
S75: GB
A76: 2014-07-13T11:30:00 | B76: an | C76: Lerwick | D76: 60153 | E76: -1.140 | F76: Shetland | H76: =I76/J76 -> 4.421052632 | I76: 21 | J76: =(A76-A77)/0.0416666666666667 -> 4.75 | K76: 479 | M76: =ROUNDUP((((A76-A77)/0.0416666666666667))/24,0) -> 1 | P76: 1 | S76: GB
A77: 2014-07-13T06:45:00 | B77: ab | C77: Vidlin | D77: 60371 | E77: -1.127 | F77: Shetland | O77: =ROUNDDOWN(((($A77-$A79)/0.0416666666666667))/24,0) -> 0 | S77: GB
S78: GB
A79: 2014-07-12T13:40:00 | B79: an | C79: Vidlin | D79: 60371 | E79: -1.127 | F79: Shetland | H79: =I79/J79 -> 4.5 | I79: 21 | J79: =(A79-A80)/0.0416666666666667 -> 4.666666667 | K79: 475 | M79: =ROUNDUP((((A79-A80)/0.0416666666666667))/24,0) -> 1 | Q79: 1 | S79: GB
A80: 2014-07-12T09:00:00 | B80: ab | C80: Mid Yell | D80: 60600 | E80: -1.061 | F80: Shetland | O80: =ROUNDDOWN(((($A80-$A82)/0.0416666666666667))/24,0) -> 0 | S80: GB
S81: GB
A82: 2014-07-11T15:00:00 | B82: an | C82: Mid Yell | D82: 60600 | E82: -1.061 | F82: Shetland | H82: =I82/J82 -> 3.764705882 | I82: 16 | J82: =(A82-A83)/0.0416666666666667 -> 4.25 | K82: 472 | M82: =ROUNDUP((((A82-A83)/0.0416666666666667))/24,0) -> 1 | Q82: 1 | S82: GB
A83: 2014-07-11T10:45:00 | B83: ab | C83: Unst / Bata Sound | D83: 60758 | E83: -0.839 | F83: Shetland | N83: =ROUNDDOWN(((($A83-$A85)/0.0416666666666667))/24,0) -> 2 | S83: GB
S84: GB
A85: 2014-07-09T10:00:00 | B85: an | C85: Unst / Bata Sound | D85: 60758 | E85: -0.839 | F85: Shetland | H85: =I85/J85 -> 6.964980545 | I85: 179 | J85: =(A85-A89)/0.0416666666666667 -> 25.7 | K85: 470 | M85: =ROUNDUP((((A85-A89)/0.0416666666666667))/24,0) -> 2 | P85: 1 | S85: GB
A86: 2014-07-08T19:00:00 | D86: 61233 | E86: 2833 | F86: 2. Reff | S86: GB
A87: 2014-07-08T17:00:00 | B87: u | D87: 61372 | E87: 3306 | F87: 150nm to go, 1stes Reff | S87: GB
A88: 2014-07-08T12:45:00 | B88: u | D88: 61541 | E88: 3747 | F88: 165 nm to go, muß um Ölfelder navigieren | S88: GB
A89: 2014-07-08T08:18:00 | B89: ab | C89: Kalvaag | D89: 61765 | E89: 4877 | F89: 203 nm to go! | S89: NOR
S90: NOR
A91: 2014-07-06T16:15:00 | B91: an | C91: Kalvaag | D91: 61765 | E91: 4877 | F91: gemotort, 145NOK ohne Strom | H91: =I91/J91 -> 4.173913043 | I91: 24 | J91: =(A91-A92)/0.0416666666666667 -> 5.75 | K91: 470 | M91: =ROUNDUP((((A91-A92)/0.0416666666666667))/24,0) -> 1 | P91: 1 | S91: NOR
A92: 2014-07-06T10:30:00 | B92: ab | C92: Silda | D92: 62012 | E92: 5201 | N92: =ROUNDDOWN(((($A92-$A94)/0.0416666666666667))/24,0) -> 0 | S92: NOR
S93: NOR
A94: 2014-07-05T14:30:00 | B94: an | C94: Silda | D94: 62012 | E94: 5201 | F94: Um Stattlandet, gemotort, 150 NOK, Duschen 20 NOK | H94: =I94/J94 -> 5.375 | I94: 43 | J94: =(A94-A95)/0.0416666666666667 -> 8 | K94: 465 | M94: =ROUNDUP((((A94-A95)/0.0416666666666667))/24,0) -> 1 | P94: 1 | S94: NOR
A95: 2014-07-05T06:30:00 | B95: ab | C95: Orsta | D95: 62196 | E95: 6125 | N95: =ROUNDDOWN(((($A95-$A97)/0.0416666666666667))/24,0) -> 2 | S95: NOR
S96: NOR
A97: 2014-07-02T17:30:00 | B97: an | C97: Orsta | D97: 62196 | E97: 6125 | F97: Besuch bei Edelgard und Lars, 150 NOK all ink. | H97: =I97/J97 -> 3.571428571 | I97: 25 | J97: =(A97-A98)/0.0416666666666667 -> 7 | K97: 455 | M97: =ROUNDUP((((A97-A98)/0.0416666666666667))/24,0) -> 1 | P97: 1 | S97: NOR
A98: 2014-07-02T10:30:00 | B98: ab | C98: Runde | D98: 62395 | E98: 5663 | F98: Flaute | N98: =ROUNDDOWN(((($A98-$A100)/0.0416666666666667))/24,0) -> 0 | S98: NOR
S99: NOR
A100: 2014-07-01T15:30:00 | B100: an | C100: Runde | D100: 62395 | E100: 5663 | H100: =I100/J100 -> 3 | I100: 21 | J100: =(A100-A101)/0.0416666666666667 -> 7 | K100: 452 | M100: =ROUNDUP((((A100-A101)/0.0416666666666667))/24,0) -> 1 | P100: 1 | S100: NOR
A101: 2014-07-01T08:30:00 | B101: ab | C101: Saetre | D101: 62309 | E101: 6097 | N101: =ROUNDDOWN(((($A101-$A103)/0.0416666666666667))/24,0) -> 0 | S101: NOR
S102: NOR
A103: 2014-06-30T16:30:00 | B103: an | C103: Saetre | D103: 62309 | E103: 6097 | F103: Die "Stoer" aus KA is auch da. 75 NOK ohne alles | H103: =I103/J103 -> 5.523809524 | I103: 58 | J103: =(A103-A104)/0.0416666666666667 -> 10.5 | K103: 450 | M103: =ROUNDUP((((A103-A104)/0.0416666666666667))/24,0) -> 1 | P103: 1 | S103: NOR
A104: 2014-06-30T06:00:00 | B104: ab | C104: Geiranger | D104: 62101 | E104: 7203 | N104: =ROUNDDOWN(((($A104-$A106)/0.0416666666666667))/24,0) -> 4 | S104: NOR
S105: NOR
A106: 2014-06-25T19:45:00 | B106: an | C106: Geiranger | D106: 62101 | E106: 7203 | F106: Die "Stoer" aus KA is auch da. 150 NOK, Dusche 10 NOK | H106: =I106/J106 -> 4.923076923 | I106: 64 | J106: =(A106-A107)/0.0416666666666667 -> 13 | K106: 445 | M106: =ROUNDUP((((A106-A107)/0.0416666666666667))/24,0) -> 1 | P106: 1 | S106: NOR
A107: 2014-06-25T06:45:00 | B107: ab | C107: Alesund | D107: 62471 | E107: 6152 | F107: Nach wie vor 15-20kn Wind aus NO. Kreuzen in den Geiranger. | N107: =ROUNDDOWN(((($A107-$A109)/0.0416666666666667))/24,0) -> 0 | S107: NOR
S108: NOR
A109: 2014-06-25T12:15:00 | B109: an | C109: Alesund | D109: 62471 | E109: 6152 | F109: War ein ordentlicher Kampf heute. Gischt bis mitte Masthöhe und 3-4 m Welle. Bei Alesund 25 kn in Boen 28kn. Hafen 150 NOK | H109: =I109/J109 -> 4.222222222 | I109: 19 | J109: =(A109-A110)/0.0416666666666667 -> 4.5 | K109: 435 | M109: =ROUNDUP((((A109-A110)/0.0416666666666667))/24,0) -> 1 | P109: 1 | S109: NOR
A110: 2014-06-25T07:45:00 | B110: ab | C110: Runde | D110: 62395 | E110: 5663 | F110: 20kn aus NO - genau entgegen ;-(. Hafen 150 NOK | N110: =ROUNDDOWN(((($A110-$A112)/0.0416666666666667))/24,0) -> 1 | S110: NOR
S111: NOR
A112: 2014-06-23T16:30:00 | B112: an | C112: Runde | D112: 62395 | E112: 5663 | F112: Stattlandet gut umrundet. Bumpy. Kreuzwellen bis 3 m. Wind 10-17kn aus Nord. | H112: =I112/J112 -> 4.8 | I112: 48 | J112: =(A112-A113)/0.0416666666666667 -> 10 | K112: 433 | M112: =ROUNDUP((((A112-A113)/0.0416666666666667))/24,0) -> 1 | P112: 1 | S112: NOR
A113: 2014-06-23T06:30:00 | B113: ab | C113: Silda | D113: 62012 | E113: 5201 | F113: Regen | N113: =ROUNDDOWN(((($A113-$A115)/0.0416666666666667))/24,0) -> 2 | S113: NOR
S114: NOR
A115: 2014-06-20T10:30:00 | B115: an | C115: Silda | D115: 62012 | E115: 5201 | F115: Regen, Regen, Sonne, Regen, Regen, Sonne, Regen | H115: =I115/J115 -> 2.25 | I115: 9 | J115: =(A115-A116)/0.0416666666666667 -> 4 | K115: 430 | M115: =ROUNDUP((((A115-A116)/0.0416666666666667))/24,0) -> 1 | P115: 1 | S115: NOR
A116: 2014-06-20T06:30:00 | B116: ab | C116: Maloy | D116: 61933 | E116: 5114 | F116: Regen, Regen, Sonne, Regen, Regen, Sonne, Regen, 200 NOK, Strom 40 NOK | N116: =ROUNDDOWN(((($A116-$A118)/0.0416666666666667))/24,0) -> 1 | S116: NOR
S117: NOR
A118: 2014-06-18T20:30:00 | B118: an | C118: Maloy | D118: 61933 | E118: 5114 | F118: Regen. Wind aus NO, N, NW,W,SW. In der Reihenfolge | H118: =I118/J118 -> 4.916666667 | I118: 59 | J118: =(A118-A119)/0.0416666666666667 -> 12 | K118: 428 | M118: =ROUNDUP((((A118-A119)/0.0416666666666667))/24,0) -> 1 | P118: 1 | S118: NOR
A119: 2014-06-18T08:30:00 | B119: ab | C119: Bulandet | D119: 61285 | E119: 4633 | F119: Nieselregen und Flaute | N119: =ROUNDDOWN(((($A119-$A121)/0.0416666666666667))/24,0) -> 0 | S119: NOR
S120: NOR
A121: 2014-06-17T16:15:00 | B121: an | C121: Bulandet | D121: 61285 | E121: 4633 | F121: 200 NOK, ohne alles. Schnorre mir die Dusche. | H121: =I121/J121 -> 3.885714286 | I121: 34 | J121: =(A121-A122)/0.0416666666666667 -> 8.75 | K121: 418 | M121: =ROUNDUP((((A121-A122)/0.0416666666666667))/24,0) -> 1 | P121: 1 | S121: NOR
A122: 2014-06-17T07:30:00 | B122: ab | C122: Viking Bucht | D122: 60866 | E122: 4914 | O122: =ROUNDDOWN(((($A122-$A124)/0.0416666666666667))/24,0) -> 2 | S122: NOR
S123: NOR
A124: 2014-06-14T18:15:00 | B124: an | C124: Viking Bucht | D124: 60866 | E124: 4914 | F124: Sonnenschein, Ankern bei 20kn Wind! Wind aus Nord. Heute Morgen 4 Stunden Motort durch die Fjorde. | H124: =I124/J124 -> 4.820512821 | I124: 47 | J124: =(A124-A125)/0.0416666666666667 -> 9.75 | K124: 413 | M124: =ROUNDUP((((A124-A125)/0.0416666666666667))/24,0) -> 1 | Q124: 1 | S124: NOR
A125: 2014-06-14T08:30:00 | B125: ab | C125: Bergen | D125: 60395 | E125: 5324 | F125: Festival in Bergen. Müssen um 0800 den Platz räumen. Sognefjord Rundfahrt, Sonnenschein. 200 NOK + 75 NOK Strom | N125: =ROUNDDOWN(((($A125-$A127)/0.0416666666666667))/24,0) -> 1 | S125: NOR
S126: NOR
A127: 2014-06-12T11:45:00 | B127: an | C127: Bergen | D127: 60395 | E127: 5324 | F127: Schwerer Regen | H127: =I127/J127 -> 5 | I127: 20 | J127: =(A127-A128)/0.0416666666666667 -> 4 | K127: 410 | M127: =ROUNDUP((((A127-A128)/0.0416666666666667))/24,0) -> 1 | P127: 1 | S127: NOR
A128: 2014-06-12T07:45:00 | B128: ab | C128: Kleppavika | D128: 60185 | E128: 5151 | F128: Regen, 150 NOK, kein Strom | N128: =ROUNDDOWN(((($A128-$A130)/0.0416666666666667))/24,0) -> 0 | S128: NOR
S129: NOR
A130: 2014-06-11T19:45:00 | B130: an | C130: Kleppavika | D130: 60185 | E130: 5151 | H130: =I130/J130 -> 5.888888889 | I130: 53 | J130: =(A130-A131)/0.0416666666666667 -> 9 | K130: 410 | M130: =ROUNDUP((((A130-A131)/0.0416666666666667))/24,0) -> 1 | P130: 1 | S130: NOR
A131: 2014-06-11T10:45:00 | B131: ab | C131: Haugesund | D131: 59410 | E131: 5268 | F131: Hagel! | N131: =ROUNDDOWN(((($A131-$A133)/0.0416666666666667))/24,0) -> 0 | S131: NOR
S132: NOR
A133: 2014-06-10T15:15:00 | B133: an | C133: Haugesund | D133: 59410 | E133: 5268 | F133: Regen, hefitger, böiger Wind | H133: =I133/J133 -> 5.12 | I133: 32 | J133: =(A133-A134)/0.0416666666666667 -> 6.25 | K133: 407 | M133: =ROUNDUP((((A133-A134)/0.0416666666666667))/24,0) -> 1 | P133: 1 | S133: NOR
A134: 2014-06-10T09:00:00 | B134: ab | C134: Tau | D134: 59060 | E134: 5910 | F134: iPad Glas kaputt ;-(, Visit Preikestolen. Tau-Prei-Tau 150 NOK | N134: =ROUNDDOWN(((($A134-$A136)/0.0416666666666667))/24,0) -> 3 | S134: NOR
S135: NOR
A136: 2014-06-06T16:00:00 | B136: an | C136: Tau | D136: 59060 | E136: 5910 | F136: Visit Stavanger. Tau-Satv-Tau 94 NOK | H136: =I136/J136 -> 2.444444444 | I136: 11 | J136: =(A136-A137)/0.0416666666666667 -> 4.5 | K136: 403 | M136: =ROUNDUP((((A136-A137)/0.0416666666666667))/24,0) -> 1 | P136: 1 | S136: NOR
A137: 2014-06-06T11:30:00 | B137: ab | C137: Lindoy | D137: 58989 | E137: 5812 | F137: Tau Hrb 150 NOK, no electricity | N137: =ROUNDDOWN(((($A137-$A139)/0.0416666666666667))/24,0) -> 0 | S137: NOR
S138: NOR
A139: 2014-06-05T12:15:00 | B139: an | C139: Lindoy | D139: 58989 | E139: 5812 | H139: =I139/J139 -> 2 | I139: 10 | J139: =(A139-A140)/0.0416666666666667 -> 5 | K139: 402 | M139: =ROUNDUP((((A139-A140)/0.0416666666666667))/24,0) -> 1 | P139: 1 | S139: NOR
A140: 2014-06-05T07:15:00 | B140: ab | C140: Mysteroe | D140: 59098 | E140: 5610 | N140: =ROUNDDOWN(((($A140-$A142)/0.0416666666666667))/24,0) -> 0 | S140: NOR
S141: NOR
A142: 2014-06-04T19:15:00 | B142: an | C142: Mysteroe | D142: 59098 | E142: 5610 | F142: Steg, Kloster Utstein | H142: =I142/J142 -> 4.347826087 | I142: 50 | J142: =(A142-A143)/0.0416666666666667 -> 11.5 | K142: 401 | M142: =ROUNDUP((((A142-A143)/0.0416666666666667))/24,0) -> 1 | P142: 1 | S142: NOR
A143: 2014-06-04T07:45:00 | B143: ab | C143: Hellvik | D143: 58479 | E143: 5872 | N143: =ROUNDDOWN(((($A143-$A145)/0.0416666666666667))/24,0) -> 0 | S143: NOR
S144: NOR
A145: 2014-06-03T19:30:00 | B145: an | C145: Hellvik | D145: 58479 | E145: 5872 | F145: Steg | H145: =I145/J145 -> 4.7 | I145: 47 | J145: =(A145-A146)/0.0416666666666667 -> 10 | K145: 400 | M145: =ROUNDUP((((A145-A146)/0.0416666666666667))/24,0) -> 1 | P145: 1 | S145: NOR
A146: 2014-06-03T09:30:00 | B146: ab | C146: Farsund | D146: 58076 | E146: 6834 | N146: =ROUNDDOWN(((($A146-$A148)/0.0416666666666667))/24,0) -> 0 | S146: NOR
S147: NOR
A148: 2014-06-02T19:30:00 | B148: an | C148: Farsund | D148: 58076 | E148: 6834 | F148: Steg | H148: =I148/J148 -> 4.470588235 | I148: 38 | J148: =(A148-A149)/0.0416666666666667 -> 8.5 | K148: 398 | M148: =ROUNDUP((((A148-A149)/0.0416666666666667))/24,0) -> 1 | P148: 1 | S148: NOR
A149: 2014-06-02T11:00:00 | B149: ab | C149: Mandal | D149: 58025 | E149: 7454 | F149: Hafen | N149: =ROUNDDOWN(((($A149-$A151)/0.0416666666666667))/24,0) -> 0 | S149: NOR
S150: NOR
A151: 2014-06-01T17:00:00 | B151: an | C151: Mandal | D151: 58025 | E151: 7454 | F151: Hafen | H151: =I151/J151 -> 3.647058823 | I151: 31 | J151: =(A151-A152)/0.0416666666666667 -> 8.5 | K151: 397 | M151: =ROUNDUP((((A151-A152)/0.0416666666666667))/24,0) -> 1 | P151: 1 | S151: NOR
A152: 2014-06-01T08:30:00 | B152: ab | C152: Kristiansand | D152: 58141 | E152: 8046 | F152: Lyngoeybukta, Heckanker | O152: =ROUNDDOWN(((($A152-$A154)/0.0416666666666667))/24,0) -> 0 | S152: NOR
S153: NOR
A154: 2014-05-31T12:15:00 | B154: an | C154: Kristiansand | D154: 58141 | E154: 8046 | F154: Lyngoeybukta, Heckanker | H154: =I154/J154 -> 5.052631579 | I154: 24 | J154: =(A154-A155)/0.0416666666666667 -> 4.75 | K154: 391 | M154: =ROUNDUP((((A154-A155)/0.0416666666666667))/24,0) -> 1 | Q154: 1 | S154: NOR
A155: 2014-05-31T07:30:00 | B155: ab | C155: Lilesand | D155: 58232 | E155: 8391 | F155: Hestholmbukta | O155: =ROUNDDOWN(((($A155-$A157)/0.0416666666666667))/24,0) -> 0 | S155: NOR
S156: NOR
A157: 2014-05-30T14:00:00 | B157: an | C157: Lilesand | D157: 58232 | E157: 8391 | F157: Hestholmbukta, Heckanker | H157: =I157/J157 -> 3.538461538 | I157: 23 | J157: =(A157-A158)/0.0416666666666667 -> 6.5 | K157: 388 | M157: =ROUNDUP((((A157-A158)/0.0416666666666667))/24,0) -> 1 | Q157: 1 | S157: NOR
A158: 2014-05-30T07:30:00 | B158: ab | C158: Arendal | D158: 58458 | E158: 8769 | N158: =ROUNDDOWN(((($A158-$A160)/0.0416666666666667))/24,0) -> 0 | S158: NOR
S159: NOR
A160: 2014-05-29T20:30:00 | B160: an | C160: Arendal | D160: 58458 | E160: 8769 | F160: Heckanker in der Trommeling bucht hat nicht gehalten. Also nach Arendal. Es sind gerade Ferien. Parken im Stadthafen. | H160: =I160/J160 -> 3.090909091 | I160: 34 | J160: =(A160-A161)/0.0416666666666667 -> 11 | K160: 385 | M160: =ROUNDUP((((A160-A161)/0.0416666666666667))/24,0) -> 1 | P160: 1 | S160: NOR
A161: 2014-05-29T09:30:00 | B161: ab | C161: Risör | D161: 58725 | E161: 9259 | N161: =ROUNDDOWN(((($A161-$A163)/0.0416666666666667))/24,0) -> 0 | S161: NOR
S162: NOR
A163: 2014-05-28T19:30:00 | B163: an | C163: Risör | D163: 58725 | E163: 9259 | F163: Parken am Motor-Boot-Club | H163: =I163/J163 -> 5.636363636 | I163: 62 | J163: =(A163-A164)/0.0416666666666667 -> 11 | K163: 381 | M163: =ROUNDUP((((A163-A164)/0.0416666666666667))/24,0) -> 1 | P163: 1 | S163: NOR
A164: 2014-05-28T08:30:00 | B164: ab | C164: Koster Nord | D164: 58870 | E164: 11001 | N164: =ROUNDDOWN(((($A164-$A166)/0.0416666666666667))/24,0) -> 0 | S164: S
S165: S
A166: 2014-05-27T11:30:00 | B166: an | C166: Koster Nord | D166: 58870 | E166: 11001 | H166: =I166/J166 -> 3.333333333 | I166: 5 | J166: =(A166-A167)/0.0416666666666667 -> 1.5 | K166: 379 | M166: =ROUNDUP((((A166-A167)/0.0416666666666667))/24,0) -> 1 | P166: 1 | S166: S
A167: 2014-05-27T10:00:00 | B167: ab | C167: Koster - Arholmen | D167: 58870 | E167: 11001 | O167: =ROUNDDOWN(((($A167-$A169)/0.0416666666666667))/24,0) -> 0 | S167: S
S168: S
A169: 2014-05-26T13:00:00 | B169: an | C169: Koster - Arholmen | D169: 58870 | E169: 11001 | F169: Felsen | H169: =I169/J169 -> 3.25 | I169: 13 | J169: =(A169-A170)/0.0416666666666667 -> 4 | K169: 378 | M169: =ROUNDUP((((A169-A170)/0.0416666666666667))/24,0) -> 1 | Q169: 1 | S169: S
A170: 2014-05-26T09:00:00 | B170: ab | C170: Trossoe | D170: 58767 | E170: 11174 | F170: Boje | O170: =ROUNDDOWN(((($A170-$A172)/0.0416666666666667))/24,0) -> 1 | S170: S
S171: S
A172: 2014-05-24T19:15:00 | B172: an | C172: Trossoe | D172: 58767 | E172: 11174 | F172: Boje | H172: =I172/J172 -> 3.4 | I172: 34 | J172: =(A172-A174)/0.0416666666666667 -> 10 | K172: 377 | M172: =ROUNDUP((((A172-A174)/0.0416666666666667))/24,0) -> 1 | Q172: 1 | S172: S
A173: 2014-05-24T15:30:00 | B173: u | C173: Moellen | F173: Mittagspause, Boje | S173: S
A174: 2014-05-24T09:15:00 | B174: ab | C174: Smögen | D174: 58354 | E174: 11220 | F174: 150 SK / Nacht | N174: =ROUNDDOWN(((($A174-$A176)/0.0416666666666667))/24,0) -> 1 | S174: S
S175: S
A176: 2014-05-22T15:40:00 | B176: an | C176: Smögen | D176: 58354 | E176: 11220 | H176: =I176/J176 -> 3.069767442 | I176: 22 | J176: =(A176-A178)/0.0416666666666667 -> 7.166666667 | K176: 374 | M176: =ROUNDUP((((A176-A178)/0.0416666666666667))/24,0) -> 1 | P176: 1 | S176: S
A177: 2014-05-22T15:40:00 | B177: u | C177: Gullholmen | S177: S
A178: 2014-05-22T08:30:00 | B178: ab | C178: Molloen | D178: 58063 | E178: 11450 | O178: =ROUNDDOWN(((($A178-$A180)/0.0416666666666667))/24,0) -> 0 | S178: S
S179: S
A180: 2014-05-21T15:30:00 | B180: an | C180: Molloen | D180: 58063 | E180: 11450 | F180: An der Boje | H180: =I180/J180 -> 2.266666667 | I180: 17 | J180: =(A180-A182)/0.0416666666666667 -> 7.5 | K180: 372 | M180: =ROUNDUP((((A180-A182)/0.0416666666666667))/24,0) -> 1 | Q180: 1 | S180: S
B181: u | C181: Marstrand | F181: Einkaufen, Stadtbesichtigung | S181: S
A182: 2014-05-21T08:00:00 | B182: ab | C182: Ussholmen (Insel) | D182: 57847 | E182: 11551 | O182: =ROUNDDOWN(((($A182-$A184)/0.0416666666666667))/24,0) -> 1 | S182: S
S183: S
A184: 2014-05-19T14:40:00 | B184: an | C184: Ussholmen (Insel) | D184: 57847 | E184: 11551 | F184: Am Felsnagel | H184: =I184/J184 -> 5.066666667 | I184: 38 | J184: =(A184-A185)/0.0416666666666667 -> 7.5 | K184: 368 | M184: =ROUNDUP((((A184-A185)/0.0416666666666667))/24,0) -> 1 | Q184: 1 | S184: S
A185: 2014-05-19T07:10:00 | B185: ab | C185: Laeso | D185: 57322 | E185: 11125 | N185: =ROUNDDOWN(((($A185-$A187)/0.0416666666666667))/24,0) -> 0 | S185: S
S186: DK
A187: 2014-05-18T19:50:00 | B187: an | C187: Laeso | D187: 57322 | E187: 11125 | F187: Geschnorrte Nacht | H187: =I187/J187 -> 5.647058823 | I187: 64 | J187: =(A187-A188)/0.0416666666666667 -> 11.33333333 | K187: 367 | M187: =ROUNDUP((((A187-A188)/0.0416666666666667))/24,0) -> 1 | P187: 1 | S187: DK
A188: 2014-05-18T08:30:00 | B188: ab | C188: Anholt | D188: 56714 | E188: 11512 | F188: Mit dem Radl die Insel erkundet | N188: =ROUNDDOWN(((($A188-$A190)/0.0416666666666667))/24,0) -> 1 | S188: DK
S189: DK
A190: 2014-05-16T19:20:00 | B190: an | C190: Anholt | D190: 56714 | E190: 11512 | H190: =I190/J190 -> 4.676470588 | I190: 53 | J190: =(A190-A191)/0.0416666666666667 -> 11.33333333 | K190: 365 | M190: =ROUNDUP((((A190-A191)/0.0416666666666667))/24,0) -> 1 | P190: 1 | S190: DK
A191: 2014-05-16T08:00:00 | B191: ab | C191: Tonne | D191: 56217 | E191: 10588 | O191: =ROUNDDOWN(((($A191-$A193)/0.0416666666666667))/24,0) -> 1 | S191: DK
S192: DK
A193: 2014-05-14T17:50:00 | B193: an | C193: Tonne | D193: 56217 | E193: 10588 | F193: Zum Ende hin komplette Flaute | H193: =I193/J193 -> 4.125 | I193: 22 | J193: =(A193-A194)/0.0416666666666667 -> 5.333333333 | K193: 360 | M193: =ROUNDUP((((A193-A194)/0.0416666666666667))/24,0) -> 1 | Q193: 1 | S193: DK
A194: 2014-05-14T12:30:00 | B194: ab | C194: Aarhus | D194: 56138 | E194: 10213 | N194: =ROUNDDOWN(((($A194-$A196)/0.0416666666666667))/24,0) -> 0 | S194: DK
S195: DK
A196: 2014-05-13T17:50:00 | B196: an | C196: Aarhus | D196: 56138 | E196: 10213 | F196: Zackiger Wind. Blutige Finger. 3. Reff | H196: =I196/J196 -> 5.4 | I196: 54 | J196: =(A196-A197)/0.0416666666666667 -> 10 | K196: 358 | M196: =ROUNDUP((((A196-A197)/0.0416666666666667))/24,0) -> 1 | P196: 1 | S196: DK
A197: 2014-05-13T07:50:00 | B197: ab | C197: Middelfart | D197: 55486 | E197: 9710 | O197: =ROUNDDOWN(((($A197-$A199)/0.0416666666666667))/24,0) -> 0 | S197: DK
S198: DK
A199: 2014-05-12T16:30:00 | B199: an | C199: Middelfart | D199: 55486 | E199: 9710 | F199: http://marinaguide.dk/de/middelfart-marina/einrichtung/ | H199: =I199/J199 -> 4.615384615 | I199: 40 | J199: =(A199-A200)/0.0416666666666667 -> 8.666666667 | K199: 357 | M199: =ROUNDUP((((A199-A200)/0.0416666666666667))/24,0) -> 1 | Q199: 1 | S199: DK
A200: 2014-05-12T07:50:00 | B200: ab | C200: Faaborg (S5/5) | D200: 55094 | E200: 10238 | N200: =ROUNDDOWN((((A200-A202)/0.0416666666666667))/24,0) -> 1 | S200: DK
S201: DK
A202: 2014-05-10T17:30:00 | B202: an | C202: Faaborg (S5/5) | D202: 55094 | E202: 10238 | F202: Es regnet wieder. Eine Regenfront hat mich überholt | H202: =I202/J202 -> 5.028571429 | I202: 44 | J202: =(A202-A203)/0.0416666666666667 -> 8.75 | K202: 356 | M202: =ROUNDUP((((A202-A203)/0.0416666666666667))/24,0) -> 1 | P202: 1 | S202: DK
A203: 2014-05-10T08:45:00 | B203: ab | C203: Laboe | D203: 54399 | E203: 10211 | F203: Es hat aufgehört zu regnen | N203: =ROUNDDOWN((((A203-A205)/0.0416666666666667))/24,0) -> 2 | S203: D
... 66 more rows

Sheet Motorbook_FleurdOcean
A1: Fleur d'Ocean | B1: Original h Zähler bei 643 erssetzt. | H1: Tankinhalt 140L
B2: Mech Zähler übernahme bei 257 h | H2: Wassertank 325L
A4: Total | B4: =SUM(B6:B17) -> 584.0872416 | D4: =MAX(D6:D17) -> 1268 | F4: =AVERAGE(F6:F17) -> 1.590603466
A5: Datum | B5: Liter | C5: Euro | D5: Motor h | E5: h | F5: l/h | H5: Rest L im Tank | I5: Rest H | J5: Reichweite
A6: Verbrauch seit letzten Tanken | B6: =E6*F4 -> 19.0872416 | D6: =MAX(Logbook_FleurdOcean!K7:K271)+643 -> 1268 | E6: =D6-D8 -> 12 | H6: =140-B6 -> 120.9127584 | I6: =H6/F4 -> 76.01690865 | J6: =I6*Logbook_FleurdOcean!H2 -> 371.6211654
A8: 2014-08-13 | B8: 75 | C8: =B8*1.5 -> 112.5 | D8: 1256 | E8: =D8-D9 -> 51 | F8: =B8/E8 -> 1.470588235 | I8: nicht ganz voll, ca. 30 Liter fehlen, Impeller gewechselt
A9: 2014-08-02 | B9: 24 | C9: 40.2192 | D9: 1205 | E9: 20 | F9: 1.2
A10: 2014-07-28 | B10: 92 | C10: 147.2184 | D10: 1185 | E10: 42 | F10: 2.19047619
A11: 2014-07-21 | B11: 60 | C11: 73.08 | D11: 1143 | E11: 35 | F11: 1.714285714 | I11: nicht ganz voll getankt!
A12: 2014-07-06 | B12: 60 | C12: 63.8575 | D12: 1108 | E12: 37 | F12: 1.621621622
A13: 2014-06-20 | B13: 72 | C13: 76.629 | D13: 1071 | E13: 51 | F13: 1.411764706
A14: 2014-05-24 | B14: 56 | C14: 61.95 | D14: 1020 | E14: 34 | F14: 1.647058824
A15: 2014-05-05 | B15: 46 | C15: 50 | D15: 986 | E15: 27 | F15: 1.703703704
A16: 2014-04-23 | B16: 80 | C16: 117 | D16: 959 | E16: 59 | F16: 1.355932203
D17: 900
